Department,Entity,Date of Payment,Expense Type,Expense Area,Supplier,Transaction Number,Amount,Description,Supplier Post Code,Supplier Type
"Department for Business, Energy and Industrial Strategy","Department for Business, Energy and Industrial Strategy",05/04/2022,Stationery,"Corporate Services - Policy, Strategy And Private Office","Personal Expense, Name Withheld",438626,40.79,Mf Devolved Admin-stationery,,EMPLOYEE
"Department for Business, Energy and Industrial Strategy","Department for Business, Energy and Industrial Strategy",06/04/2022,Office-related Expenditure,"Corporate Services - Policy, Strategy And Private Office","Personal Expense, Name Withheld",438898,55.99,Mf Devolved Admin-office-related Expenditure,,EMPLOYEE
"Department for Business, Energy and Industrial Strategy","Department for Business, Energy and Industrial Strategy",06/04/2022,Office-related Expenditure,"Corporate Services - Policy, Strategy And Private Office","Personal Expense, Name Withheld",438898,56.99,Mf Devolved Admin-office-related Expenditure,,EMPLOYEE
"Department for Business, Energy and Industrial Strategy","Department for Business, Energy and Industrial Strategy",07/04/2022,Office-related Expenditure,"Corporate Services - Policy, Strategy And Private Office","Personal Expense, Name Withheld",439217,26.99,Mf Devolved Admin-office-related Expenditure,,EMPLOYEE
"Department for Business, Energy and Industrial Strategy","Department for Business, Energy and Industrial Strategy",07/04/2022,Office-related Expenditure,"Corporate Services - Policy, Strategy And Private Office","Personal Expense, Name Withheld",439217,48.99,Mf Devolved Admin-office-related Expenditure,,EMPLOYEE
"Department for Business, Energy and Industrial Strategy","Department for Business, Energy and Industrial Strategy",28/04/2022,Rail Travel Uk,"Corporate Services - Policy, Strategy And Private Office","Personal Expense, Name Withheld",442326,4.30,Mf Devolved Admin-rail Travel Uk,,EMPLOYEE
"Department for Business, Energy and Industrial Strategy","Department for Business, Energy and Industrial Strategy",28/04/2022,Rail Travel Uk,"Corporate Services - Policy, Strategy And Private Office","Personal Expense, Name Withheld",442326,4.30,Mf Devolved Admin-rail Travel Uk,,EMPLOYEE
"Department for Business, Energy and Industrial Strategy","Department for Business, Energy and Industrial Strategy",28/04/2022,Rail Travel Uk,"Corporate Services - Policy, Strategy And Private Office","Personal Expense, Name Withheld",442326,34.60,Mf Devolved Admin-rail Travel Uk,,EMPLOYEE
"Department for Business, Energy and Industrial Strategy","Department for Business, Energy and Industrial Strategy",12/04/2022,Utilisation Of Provisions - Purchase Of Goods & Services - Other,Corporate Services - Finance Directorate,Personal Name Withheld,440014,1362.80,Payment to assessor,N2 ,VENDOR
"Department for Business, Energy and Industrial Strategy","Department for Business, Energy and Industrial Strategy",25/04/2022,Utilisation Of Provisions - Purchase Of Goods & Services - Other,Corporate Services - Finance Directorate,Blackstone Chambers Ltd,441671,774.00,Payment to assessor,EC4Y 9BW,VENDOR
"Department for Business, Energy and Industrial Strategy","Department for Business, Energy and Industrial Strategy",13/04/2022,Training And Development Expenditure,Corporate Services - Finance Directorate,Live Group Ltd,435946,598.80,Mf Devolved Admin-training And Development Expenditure,KT1 2SZ,VENDOR
"Department for Business, Energy and Industrial Strategy","Department for Business, Energy and Industrial Strategy",19/04/2022,Training And Development Expenditure,Corporate Services - Finance Directorate,Live Group Ltd,440726,598.80,Mf Devolved Admin-training And Development Expenditure,KT1 2SZ,VENDOR
"Department for Business, Energy and Industrial Strategy","Department for Business, Energy and Industrial Strategy",21/04/2022,Training And Development Expenditure,Corporate Services - Finance Directorate,Live Group Ltd,441085,47222.40,Mf Devolved Admin-training And Development Expenditure,KT1 2SZ,VENDOR
"Department for Business, Energy and Industrial Strategy","Department for Business, Energy and Industrial Strategy",06/04/2022,Office-related Expenditure,Corporate Services - Finance Directorate,"Personal Expense, Name Withheld",438867,22.19,Mf Devolved Admin-office-related Expenditure,,EMPLOYEE
"Department for Business, Energy and Industrial Strategy","Department for Business, Energy and Industrial Strategy",06/04/2022,Office-related Expenditure,Corporate Services - Finance Directorate,"Personal Expense, Name Withheld",438867,124.99,Mf Devolved Admin-office-related Expenditure,,EMPLOYEE
"Department for Business, Energy and Industrial Strategy","Department for Business, Energy and Industrial Strategy",22/04/2022,Stationery,Corporate Services - Finance Directorate,"Personal Expense, Name Withheld",441406,49.99,Mf Devolved Admin-stationery,,EMPLOYEE
"Department for Business, Energy and Industrial Strategy","Department for Business, Energy and Industrial Strategy",06/04/2022,Subsistence Uk,"Corporate Services - Digital, Data & Technology","Personal Expense, Name Withheld",438909,5.00,Mf Devolved Admin-subsistence Uk,,EMPLOYEE
"Department for Business, Energy and Industrial Strategy","Department for Business, Energy and Industrial Strategy",06/04/2022,Subsistence Uk,"Corporate Services - Digital, Data & Technology","Personal Expense, Name Withheld",438909,5.00,Mf Devolved Admin-subsistence Uk,,EMPLOYEE
"Department for Business, Energy and Industrial Strategy","Department for Business, Energy and Industrial Strategy",06/04/2022,Subsistence Uk,"Corporate Services - Digital, Data & Technology","Personal Expense, Name Withheld",438909,5.00,Mf Devolved Admin-subsistence Uk,,EMPLOYEE
"Department for Business, Energy and Industrial Strategy","Department for Business, Energy and Industrial Strategy",06/04/2022,Subsistence Uk,"Corporate Services - Digital, Data & Technology","Personal Expense, Name Withheld",438909,5.00,Mf Devolved Admin-subsistence Uk,,EMPLOYEE
"Department for Business, Energy and Industrial Strategy","Department for Business, Energy and Industrial Strategy",06/04/2022,Hospitality - Uk,"Corporate Services - Digital, Data & Technology","Personal Expense, Name Withheld",438909,5.08,Mf Devolved Admin-hospitality - Uk,,EMPLOYEE
"Department for Business, Energy and Industrial Strategy","Department for Business, Energy and Industrial Strategy",06/04/2022,Hospitality - Uk,"Corporate Services - Digital, Data & Technology","Personal Expense, Name Withheld",438909,5.60,Mf Devolved Admin-hospitality - Uk,,EMPLOYEE
"Department for Business, Energy and Industrial Strategy","Department for Business, Energy and Industrial Strategy",06/04/2022,Subsistence Uk,"Corporate Services - Digital, Data & Technology","Personal Expense, Name Withheld",438909,15.00,Mf Devolved Admin-subsistence Uk,,EMPLOYEE
"Department for Business, Energy and Industrial Strategy","Department for Business, Energy and Industrial Strategy",21/04/2022,Misc. Non Procurement Spend,"Corporate Services - Digital, Data & Technology",Oracle Corporation Uk Limited,440812,232788.00,Mf Devolved Admin-misc. Non Procurement Spend,RG6 1RA,VENDOR
"Department for Business, Energy and Industrial Strategy","Department for Business, Energy and Industrial Strategy",25/04/2022,Subsistence Uk,"Corporate Services - Digital, Data & Technology","Personal Expense, Name Withheld",441595,2.99,Mf Devolved Admin-subsistence Uk,,EMPLOYEE
"Department for Business, Energy and Industrial Strategy","Department for Business, Energy and Industrial Strategy",25/04/2022,Subsistence Uk,"Corporate Services - Digital, Data & Technology","Personal Expense, Name Withheld",441595,5.00,Mf Devolved Admin-subsistence Uk,,EMPLOYEE
"Department for Business, Energy and Industrial Strategy","Department for Business, Energy and Industrial Strategy",25/04/2022,Subsistence Uk,"Corporate Services - Digital, Data & Technology","Personal Expense, Name Withheld",441595,5.00,Mf Devolved Admin-subsistence Uk,,EMPLOYEE
"Department for Business, Energy and Industrial Strategy","Department for Business, Energy and Industrial Strategy",25/04/2022,Hospitality - Uk,"Corporate Services - Digital, Data & Technology","Personal Expense, Name Withheld",441595,7.30,Mf Devolved Admin-hospitality - Uk,,EMPLOYEE
"Department for Business, Energy and Industrial Strategy","Department for Business, Energy and Industrial Strategy",25/04/2022,Subsistence Uk,"Corporate Services - Digital, Data & Technology","Personal Expense, Name Withheld",441595,7.65,Mf Devolved Admin-subsistence Uk,,EMPLOYEE
"Department for Business, Energy and Industrial Strategy","Department for Business, Energy and Industrial Strategy",25/04/2022,Subsistence Uk,"Corporate Services - Digital, Data & Technology","Personal Expense, Name Withheld",441595,14.58,Mf Devolved Admin-subsistence Uk,,EMPLOYEE
"Department for Business, Energy and Industrial Strategy","Department for Business, Energy and Industrial Strategy",25/04/2022,Subsistence Uk,"Corporate Services - Digital, Data & Technology","Personal Expense, Name Withheld",441595,14.99,Mf Devolved Admin-subsistence Uk,,EMPLOYEE
"Department for Business, Energy and Industrial Strategy","Department for Business, Energy and Industrial Strategy",25/04/2022,Subsistence Uk,"Corporate Services - Digital, Data & Technology","Personal Expense, Name Withheld",441629,5.00,Mf Devolved Admin-subsistence Uk,,EMPLOYEE
"Department for Business, Energy and Industrial Strategy","Department for Business, Energy and Industrial Strategy",25/04/2022,Subsistence Uk,"Corporate Services - Digital, Data & Technology","Personal Expense, Name Withheld",441629,8.49,Mf Devolved Admin-subsistence Uk,,EMPLOYEE
"Department for Business, Energy and Industrial Strategy","Department for Business, Energy and Industrial Strategy",25/04/2022,Subsistence Uk,"Corporate Services - Digital, Data & Technology","Personal Expense, Name Withheld",441629,15.00,Mf Devolved Admin-subsistence Uk,,EMPLOYEE
"Department for Business, Energy and Industrial Strategy","Department for Business, Energy and Industrial Strategy",05/04/2022,Internal Audit Services,Corporate Services - Finance Directorate,Hm Treasury,438467,281250.00,Mf Devolved Admin-internal Audit Services,NR7 0HS,WGA ONLY
"Department for Business, Energy and Industrial Strategy","Department for Business, Energy and Industrial Strategy",20/04/2022,Professional Subscriptions,Corporate Services - Finance Directorate,"Personal Expense, Name Withheld",440923,270.00,Mf Devolved Admin-professional Subscriptions,,EMPLOYEE
"Department for Business, Energy and Industrial Strategy","Department for Business, Energy and Industrial Strategy",26/04/2022,Application Support Service,Corporate Services - Finance Directorate,Swiftpro Matrix Ltd,441970,2250.00,Mf Devolved Admin-application Support Service,WD18 9PX,VENDOR
"Department for Business, Energy and Industrial Strategy","Department for Business, Energy and Industrial Strategy",07/04/2022,Ca - Clarity Travel Management,"Corporate Services - Digital, Data & Technology",Corporate Travel Management (North) Ltd,439170,-40.00,Default-ca - Clarity Travel Management,BD1 5HQ,VENDOR
"Department for Business, Energy and Industrial Strategy","Department for Business, Energy and Industrial Strategy",07/04/2022,Ca - Clarity Travel Management,"Corporate Services - Digital, Data & Technology",Corporate Travel Management (North) Ltd,439170,517.84,Default-ca - Clarity Travel Management,BD1 5HQ,VENDOR
"Department for Business, Energy and Industrial Strategy","Department for Business, Energy and Industrial Strategy",07/04/2022,Ca - Clarity Travel Management,"Corporate Services - Digital, Data & Technology",Corporate Travel Management (North) Ltd,439170,1255.01,Default-ca - Clarity Travel Management,BD1 5HQ,VENDOR
"Department for Business, Energy and Industrial Strategy","Department for Business, Energy and Industrial Strategy",07/04/2022,Ca - Clarity Travel Management,"Corporate Services - Digital, Data & Technology",Corporate Travel Management (North) Ltd,439170,266756.45,Default-ca - Clarity Travel Management,BD1 5HQ,VENDOR
"Department for Business, Energy and Industrial Strategy","Department for Business, Energy and Industrial Strategy",04/04/2022,Ca - Payment-recovery Of Overpayment Re Exits,Corporate Services - Finance Directorate,Cabinet Office,438247,650.79,Default-ca - Payment-recovery Of Overpayment Re Exits,RG24 9NW,WGA ONLY
"Department for Business, Energy and Industrial Strategy","Department for Business, Energy and Industrial Strategy",04/04/2022,Ca - Payment-recovery Of Overpayment Re Exits,Corporate Services - Finance Directorate,Cabinet Office,438249,2253.95,Default-ca - Payment-recovery Of Overpayment Re Exits,RG24 9NW,WGA ONLY
"Department for Business, Energy and Industrial Strategy","Department for Business, Energy and Industrial Strategy",04/04/2022,Ca - Payment-recovery Of Overpayment Re Exits,Corporate Services - Finance Directorate,Cabinet Office,438250,374.77,Default-ca - Payment-recovery Of Overpayment Re Exits,RG24 9NW,WGA ONLY
"Department for Business, Energy and Industrial Strategy","Department for Business, Energy and Industrial Strategy",27/04/2022,Utilisation Of Provisions - Purchase Of Goods & Services - Other,Corporate Services - Finance Directorate,South Tyneside Council,442174,2725.49,Mf Devolved Admin-utilisation Of Provisions - Purchase Of Goods & Services - Other,NE32 3DP,WGA ONLY
"Department for Business, Energy and Industrial Strategy","Department for Business, Energy and Industrial Strategy",29/04/2022,Uksbs - Service Costs,"Corporate Services - Digital, Data & Technology",Uk Shared Business Services Limited,442177,17177.63,Mf Devolved Admin-uksbs - Service Costs,NP10 8QQ,VENDOR
"Department for Business, Energy and Industrial Strategy","Department for Business, Energy and Industrial Strategy",06/04/2022,Subsistence Uk,Corporate Services - Implementation And Delivery Directorate,"Personal Expense, Name Withheld",438897,5.00,Mf Devolved Admin-subsistence Uk,,EMPLOYEE
"Department for Business, Energy and Industrial Strategy","Department for Business, Energy and Industrial Strategy",07/04/2022,Subsistence Uk,Corporate Services - Implementation And Delivery Directorate,"Personal Expense, Name Withheld",439232,13.80,Mf Devolved Admin-subsistence Uk,,EMPLOYEE
"Department for Business, Energy and Industrial Strategy","Department for Business, Energy and Industrial Strategy",07/04/2022,Subsistence Uk,Corporate Services - Implementation And Delivery Directorate,"Personal Expense, Name Withheld",439233,14.60,Mf Devolved Admin-subsistence Uk,,EMPLOYEE
"Department for Business, Energy and Industrial Strategy","Department for Business, Energy and Industrial Strategy",07/04/2022,Subsistence Uk,Corporate Services - Implementation And Delivery Directorate,"Personal Expense, Name Withheld",439234,5.00,Mf Devolved Admin-subsistence Uk,,EMPLOYEE
"Department for Business, Energy and Industrial Strategy","Department for Business, Energy and Industrial Strategy",08/04/2022,Taxi Services Uk,Corporate Services - Implementation And Delivery Directorate,"Personal Expense, Name Withheld",439463,6.60,Mf Devolved Admin-taxi Services Uk,,EMPLOYEE
"Department for Business, Energy and Industrial Strategy","Department for Business, Energy and Industrial Strategy",08/04/2022,Taxi Services Uk,Corporate Services - Implementation And Delivery Directorate,"Personal Expense, Name Withheld",439463,6.60,Mf Devolved Admin-taxi Services Uk,,EMPLOYEE
"Department for Business, Energy and Industrial Strategy","Department for Business, Energy and Industrial Strategy",08/04/2022,Taxi Services Uk,Corporate Services - Implementation And Delivery Directorate,"Personal Expense, Name Withheld",439463,7.40,Mf Devolved Admin-taxi Services Uk,,EMPLOYEE
"Department for Business, Energy and Industrial Strategy","Department for Business, Energy and Industrial Strategy",08/04/2022,Taxi Services Uk,Corporate Services - Implementation And Delivery Directorate,"Personal Expense, Name Withheld",439463,8.40,Mf Devolved Admin-taxi Services Uk,,EMPLOYEE
"Department for Business, Energy and Industrial Strategy","Department for Business, Energy and Industrial Strategy",07/04/2022,Technical Advice / Services & Support,Corporate Services - Implementation And Delivery Directorate,Alexander Mann Solutions Ltd,438800,6267.18,Assurance Reviews And Ppm Capability-technical Advice / Services & Support,EC2N 3AQ,VENDOR
"Department for Business, Energy and Industrial Strategy","Department for Business, Energy and Industrial Strategy",22/04/2022,Technical Advice / Services & Support,Corporate Services - Implementation And Delivery Directorate,Alexander Mann Solutions Ltd,441258,6267.18,Assurance Reviews And Ppm Capability-technical Advice / Services & Support,EC2N 3AQ,VENDOR
"Department for Business, Energy and Industrial Strategy","Department for Business, Energy and Industrial Strategy",01/04/2022,Clearing - Cost - Assets Under Construction - Internally Developed Software,Corporate Services - Implementation And Delivery Directorate,Empyrean Digital Ltd,437877,23460.00,Digital Infrastructure And Maintenanc-clearing - Cost - Assets Under Construction - Internally Developed Software,SA6 5PF,VENDOR
"Department for Business, Energy and Industrial Strategy","Department for Business, Energy and Industrial Strategy",07/04/2022,Clearing - Cost - Assets Under Construction - Internally Developed Software,Corporate Services - Implementation And Delivery Directorate,Triad Group Plc,438726,40890.00,Digital Infrastructure And Maintenanc-clearing - Cost - Assets Under Construction - Internally Developed Software,GU7 1XE,VENDOR
"Department for Business, Energy and Industrial Strategy","Department for Business, Energy and Industrial Strategy",05/04/2022,Clearing - Cost - Assets Under Construction - Internally Developed Software,Corporate Services - Implementation And Delivery Directorate,Tmi Systems Ltd,438728,1020.00,Finance Infrastructure And Maintenance-clearing - Cost - Assets Under Construction - Internally Developed Software,RG1 7QE,VENDOR
"Department for Business, Energy and Industrial Strategy","Department for Business, Energy and Industrial Strategy",04/04/2022,Office-related Expenditure,Corporate Services - Finance Directorate,"Personal Expense, Name Withheld",438331,115.00,Mf Devolved Admin-office-related Expenditure,,EMPLOYEE
"Department for Business, Energy and Industrial Strategy","Department for Business, Energy and Industrial Strategy",01/04/2022,Subsistence Uk,Corporate Services - Implementation And Delivery Directorate,"Personal Expense, Name Withheld",437647,1.30,Mf Devolved Admin-subsistence Uk,,EMPLOYEE
"Department for Business, Energy and Industrial Strategy","Department for Business, Energy and Industrial Strategy",01/04/2022,Subsistence Uk,Corporate Services - Implementation And Delivery Directorate,"Personal Expense, Name Withheld",437647,1.30,Mf Devolved Admin-subsistence Uk,,EMPLOYEE
"Department for Business, Energy and Industrial Strategy","Department for Business, Energy and Industrial Strategy",01/04/2022,Other Travel,Corporate Services - Implementation And Delivery Directorate,"Personal Expense, Name Withheld",437647,1.40,Mf Devolved Admin-other Travel,,EMPLOYEE
"Department for Business, Energy and Industrial Strategy","Department for Business, Energy and Industrial Strategy",01/04/2022,Other Travel,Corporate Services - Implementation And Delivery Directorate,"Personal Expense, Name Withheld",437647,1.40,Mf Devolved Admin-other Travel,,EMPLOYEE
"Department for Business, Energy and Industrial Strategy","Department for Business, Energy and Industrial Strategy",01/04/2022,Other Travel,Corporate Services - Implementation And Delivery Directorate,"Personal Expense, Name Withheld",437647,2.50,Mf Devolved Admin-other Travel,,EMPLOYEE
"Department for Business, Energy and Industrial Strategy","Department for Business, Energy and Industrial Strategy",01/04/2022,Subsistence Uk,Corporate Services - Implementation And Delivery Directorate,"Personal Expense, Name Withheld",437647,8.50,Mf Devolved Admin-subsistence Uk,,EMPLOYEE
"Department for Business, Energy and Industrial Strategy","Department for Business, Energy and Industrial Strategy",01/04/2022,Subsistence Uk,Corporate Services - Implementation And Delivery Directorate,"Personal Expense, Name Withheld",437647,8.50,Mf Devolved Admin-subsistence Uk,,EMPLOYEE
"Department for Business, Energy and Industrial Strategy","Department for Business, Energy and Industrial Strategy",01/04/2022,Subsistence Uk,Corporate Services - Implementation And Delivery Directorate,"Personal Expense, Name Withheld",437647,15.00,Mf Devolved Admin-subsistence Uk,,EMPLOYEE
"Department for Business, Energy and Industrial Strategy","Department for Business, Energy and Industrial Strategy",01/04/2022,Subsistence Uk,Corporate Services - Implementation And Delivery Directorate,"Personal Expense, Name Withheld",437647,15.00,Mf Devolved Admin-subsistence Uk,,EMPLOYEE
"Department for Business, Energy and Industrial Strategy","Department for Business, Energy and Industrial Strategy",01/04/2022,Taxi Services Uk,Corporate Services - Implementation And Delivery Directorate,"Personal Expense, Name Withheld",437647,41.20,Mf Devolved Admin-taxi Services Uk,,EMPLOYEE
"Department for Business, Energy and Industrial Strategy","Department for Business, Energy and Industrial Strategy",01/04/2022,Other Relocation Costs,Corporate Services - Implementation And Delivery Directorate,"Personal Expense, Name Withheld",437965,476.11,Mf Devolved Admin-other Relocation Costs,,EMPLOYEE
"Department for Business, Energy and Industrial Strategy","Department for Business, Energy and Industrial Strategy",01/04/2022,Other Relocation Costs,Corporate Services - Implementation And Delivery Directorate,"Personal Expense, Name Withheld",437965,1235.00,Mf Devolved Admin-other Relocation Costs,,EMPLOYEE
"Department for Business, Energy and Industrial Strategy","Department for Business, Energy and Industrial Strategy",06/04/2022,Subsistence Uk,Corporate Services - Implementation And Delivery Directorate,"Personal Expense, Name Withheld",438885,9.50,Mf Devolved Admin-subsistence Uk,,EMPLOYEE
"Department for Business, Energy and Industrial Strategy","Department for Business, Energy and Industrial Strategy",06/04/2022,Taxi Services Uk,Corporate Services - Implementation And Delivery Directorate,"Personal Expense, Name Withheld",438885,9.70,Mf Devolved Admin-taxi Services Uk,,EMPLOYEE
"Department for Business, Energy and Industrial Strategy","Department for Business, Energy and Industrial Strategy",06/04/2022,Subsistence Uk,Corporate Services - Implementation And Delivery Directorate,"Personal Expense, Name Withheld",438885,11.85,Mf Devolved Admin-subsistence Uk,,EMPLOYEE
"Department for Business, Energy and Industrial Strategy","Department for Business, Energy and Industrial Strategy",21/04/2022,Subsistence Uk,Corporate Services - Implementation And Delivery Directorate,"Personal Expense, Name Withheld",440777,5.00,Mf Devolved Admin-subsistence Uk,,EMPLOYEE
"Department for Business, Energy and Industrial Strategy","Department for Business, Energy and Industrial Strategy",21/04/2022,Taxi Services Uk,Corporate Services - Implementation And Delivery Directorate,"Personal Expense, Name Withheld",440777,8.00,Mf Devolved Admin-taxi Services Uk,,EMPLOYEE
"Department for Business, Energy and Industrial Strategy","Department for Business, Energy and Industrial Strategy",21/04/2022,Subsistence Uk,Corporate Services - Implementation And Delivery Directorate,"Personal Expense, Name Withheld",440777,15.00,Mf Devolved Admin-subsistence Uk,,EMPLOYEE
"Department for Business, Energy and Industrial Strategy","Department for Business, Energy and Industrial Strategy",20/04/2022,Other Travel,Corporate Services - Implementation And Delivery Directorate,"Personal Expense, Name Withheld",440920,4.10,Mf Devolved Admin-other Travel,,EMPLOYEE
"Department for Business, Energy and Industrial Strategy","Department for Business, Energy and Industrial Strategy",20/04/2022,Taxi Services Uk,Corporate Services - Implementation And Delivery Directorate,"Personal Expense, Name Withheld",440920,13.00,Mf Devolved Admin-taxi Services Uk,,EMPLOYEE
"Department for Business, Energy and Industrial Strategy","Department for Business, Energy and Industrial Strategy",20/04/2022,Rail Travel Uk,Corporate Services - Implementation And Delivery Directorate,"Personal Expense, Name Withheld",440920,46.80,Mf Devolved Admin-rail Travel Uk,,EMPLOYEE
"Department for Business, Energy and Industrial Strategy","Department for Business, Energy and Industrial Strategy",22/04/2022,Subsistence Uk,Corporate Services - Implementation And Delivery Directorate,"Personal Expense, Name Withheld",441401,5.00,Mf Devolved Admin-subsistence Uk,,EMPLOYEE
"Department for Business, Energy and Industrial Strategy","Department for Business, Energy and Industrial Strategy",22/04/2022,Subsistence Uk,Corporate Services - Implementation And Delivery Directorate,"Personal Expense, Name Withheld",441401,15.00,Mf Devolved Admin-subsistence Uk,,EMPLOYEE
"Department for Business, Energy and Industrial Strategy","Department for Business, Energy and Industrial Strategy",06/04/2022,Hire Of Interim Managers,Corporate Services - Commercial & Operations,Alexander Mann Solutions Ltd,438980,3780.36,Mf Devolved Admin-hire Of Interim Managers,EC2N 3AQ,VENDOR
"Department for Business, Energy and Industrial Strategy","Department for Business, Energy and Industrial Strategy",06/04/2022,Hire Of Interim Managers,Corporate Services - Commercial & Operations,Alexander Mann Solutions Ltd,438982,4003.56,Mf Devolved Admin-hire Of Interim Managers,EC2N 3AQ,VENDOR
"Department for Business, Energy and Industrial Strategy","Department for Business, Energy and Industrial Strategy",07/04/2022,Stationery,Corporate Services - Commercial & Operations,"Personal Expense, Name Withheld",439161,26.00,Mf Devolved Admin-stationery,,EMPLOYEE
"Department for Business, Energy and Industrial Strategy","Department for Business, Energy and Industrial Strategy",14/04/2022,Hire Of Interim Managers,Corporate Services - Commercial & Operations,Alexander Mann Solutions Ltd,440051,756.08,Mf Devolved Admin-hire Of Interim Managers,EC2N 3AQ,VENDOR
"Department for Business, Energy and Industrial Strategy","Department for Business, Energy and Industrial Strategy",14/04/2022,Hire Of Interim Managers,Corporate Services - Commercial & Operations,Alexander Mann Solutions Ltd,440051,3024.28,Mf Devolved Admin-hire Of Interim Managers,EC2N 3AQ,VENDOR
"Department for Business, Energy and Industrial Strategy","Department for Business, Energy and Industrial Strategy",13/04/2022,Hire Of Interim Managers,Corporate Services - Commercial & Operations,Alexander Mann Solutions Ltd,440054,4003.56,Mf Devolved Admin-hire Of Interim Managers,EC2N 3AQ,VENDOR
"Department for Business, Energy and Industrial Strategy","Department for Business, Energy and Industrial Strategy",20/04/2022,Other Professional Services,Corporate Services - Commercial & Operations,Energy Institute,440872,11998.80,Mf Devolved Admin-other Professional Services,W1G 7AR,GRANT
"Department for Business, Energy and Industrial Strategy","Department for Business, Energy and Industrial Strategy",25/04/2022,Hire Of Interim Managers,Corporate Services - Commercial & Operations,Alexander Mann Solutions Ltd,441321,3649.14,Mf Devolved Admin-hire Of Interim Managers,EC2N 3AQ,VENDOR
"Department for Business, Energy and Industrial Strategy","Department for Business, Energy and Industrial Strategy",25/04/2022,Hire Of Interim Managers,Corporate Services - Commercial & Operations,Alexander Mann Solutions Ltd,441331,4003.56,Mf Devolved Admin-hire Of Interim Managers,EC2N 3AQ,VENDOR
"Department for Business, Energy and Industrial Strategy","Department for Business, Energy and Industrial Strategy",25/04/2022,Hire Of Interim Managers,Corporate Services - Commercial & Operations,Alexander Mann Solutions Ltd,441333,3780.36,Mf Devolved Admin-hire Of Interim Managers,EC2N 3AQ,VENDOR
"Department for Business, Energy and Industrial Strategy","Department for Business, Energy and Industrial Strategy",25/04/2022,Stationery,Corporate Services - Commercial & Operations,"Personal Expense, Name Withheld",441551,78.00,Mf Devolved Admin-stationery,,EMPLOYEE
"Department for Business, Energy and Industrial Strategy","Department for Business, Energy and Industrial Strategy",27/04/2022,Hire Of Interim Managers,Corporate Services - Commercial & Operations,Alexander Mann Solutions Ltd,441828,3202.85,Mf Devolved Admin-hire Of Interim Managers,EC2N 3AQ,VENDOR
"Department for Business, Energy and Industrial Strategy","Department for Business, Energy and Industrial Strategy",26/04/2022,Consultancy Expenditure,Corporate Services - Commercial & Operations,Pa Consulting Services Ltd,441841,18270.00,Eu Exit: Commercial Adm-consultancy Expenditure,SW1E 5DN,VENDOR
"Department for Business, Energy and Industrial Strategy","Department for Business, Energy and Industrial Strategy",21/04/2022,Subsistence Uk,Corporate Services - Implementation And Delivery Directorate,"Personal Expense, Name Withheld",441153,15.95,Mf Devolved Admin-subsistence Uk,,EMPLOYEE
"Department for Business, Energy and Industrial Strategy","Department for Business, Energy and Industrial Strategy",21/04/2022,Subsistence Uk,Corporate Services - Implementation And Delivery Directorate,"Personal Expense, Name Withheld",441153,19.95,Mf Devolved Admin-subsistence Uk,,EMPLOYEE
"Department for Business, Energy and Industrial Strategy","Department for Business, Energy and Industrial Strategy",21/04/2022,Rail Travel Uk,Corporate Services - Implementation And Delivery Directorate,"Personal Expense, Name Withheld",441153,29.80,Mf Devolved Admin-rail Travel Uk,,EMPLOYEE
"Department for Business, Energy and Industrial Strategy","Department for Business, Energy and Industrial Strategy",28/04/2022,Stationery,Corporate Services - Commercial & Operations,Banner Group Ltd,386999,21.76,Mf Devolved Admin-stationery,S9 1XT,VENDOR
"Department for Business, Energy and Industrial Strategy","Department for Business, Energy and Industrial Strategy",28/04/2022,Stationery,Corporate Services - Commercial & Operations,Banner Group Ltd,420002,1318.80,Mf Devolved Admin-stationery,NR3 1QU,VENDOR
"Department for Business, Energy and Industrial Strategy","Department for Business, Energy and Industrial Strategy",01/04/2022,Accommodation & Building Management,Corporate Services - Commercial & Operations,Government Property Agency,437766,590.00,Mf Devolved Admin-accommodation & Building Management,W1J 8BA,VENDOR
"Department for Business, Energy and Industrial Strategy","Department for Business, Energy and Industrial Strategy",01/04/2022,Accommodation & Building Management,Corporate Services - Commercial & Operations,Government Property Agency,437766,3037.50,Mf Devolved Admin-accommodation & Building Management,W1J 8BA,VENDOR
"Department for Business, Energy and Industrial Strategy","Department for Business, Energy and Industrial Strategy",01/04/2022,Accommodation & Building Management,Corporate Services - Commercial & Operations,Government Property Agency,437766,152757.11,Mf Devolved Admin-accommodation & Building Management,W1J 8BA,VENDOR
"Department for Business, Energy and Industrial Strategy","Department for Business, Energy and Industrial Strategy",01/04/2022,Accommodation & Building Management,Corporate Services - Commercial & Operations,Government Property Agency,437766,195105.62,Mf Devolved Admin-accommodation & Building Management,W1J 8BA,VENDOR
"Department for Business, Energy and Industrial Strategy","Department for Business, Energy and Industrial Strategy",01/04/2022,Accommodation & Building Management,Corporate Services - Commercial & Operations,Government Property Agency,437766,1026282.22,Mf Devolved Admin-accommodation & Building Management,W1J 8BA,VENDOR
"Department for Business, Energy and Industrial Strategy","Department for Business, Energy and Industrial Strategy",01/04/2022,Accommodation & Building Management,Corporate Services - Commercial & Operations,Government Property Agency,437766,1491996.13,Mf Devolved Admin-accommodation & Building Management,W1J 8BA,VENDOR
"Department for Business, Energy and Industrial Strategy","Department for Business, Energy and Industrial Strategy",01/04/2022,Rentals Under Non-pfi Operating Leases - Buildings,Corporate Services - Commercial & Operations,Government Property Agency,437766,3706164.00,Mf Devolved Admin-rentals Under Non-pfi Operating Leases - Buildings,W1J 8BA,VENDOR
"Department for Business, Energy and Industrial Strategy","Department for Business, Energy and Industrial Strategy",01/04/2022,Accommodation & Building Management,Corporate Services - Commercial & Operations,Government Property Agency,437769,340.20,Mf Devolved Admin-accommodation & Building Management,W1J 8BA,VENDOR
"Department for Business, Energy and Industrial Strategy","Department for Business, Energy and Industrial Strategy",01/04/2022,Accommodation & Building Management,Corporate Services - Commercial & Operations,Government Property Agency,437769,590.00,Mf Devolved Admin-accommodation & Building Management,W1J 8BA,VENDOR
"Department for Business, Energy and Industrial Strategy","Department for Business, Energy and Industrial Strategy",01/04/2022,Accommodation & Building Management,Corporate Services - Commercial & Operations,Government Property Agency,437769,1437.50,Mf Devolved Admin-accommodation & Building Management,W1J 8BA,VENDOR
"Department for Business, Energy and Industrial Strategy","Department for Business, Energy and Industrial Strategy",01/04/2022,Accommodation & Building Management,Corporate Services - Commercial & Operations,Government Property Agency,437769,1555.83,Mf Devolved Admin-accommodation & Building Management,W1J 8BA,VENDOR
"Department for Business, Energy and Industrial Strategy","Department for Business, Energy and Industrial Strategy",01/04/2022,Accommodation & Building Management,Corporate Services - Commercial & Operations,Government Property Agency,437769,5372.76,Mf Devolved Admin-accommodation & Building Management,W1J 8BA,VENDOR
"Department for Business, Energy and Industrial Strategy","Department for Business, Energy and Industrial Strategy",01/04/2022,Accommodation & Building Management,Corporate Services - Commercial & Operations,Government Property Agency,437769,5638.03,Mf Devolved Admin-accommodation & Building Management,W1J 8BA,VENDOR
"Department for Business, Energy and Industrial Strategy","Department for Business, Energy and Industrial Strategy",01/04/2022,Rentals Under Non-pfi Operating Leases - Buildings,Corporate Services - Commercial & Operations,Government Property Agency,437769,13924.25,Mf Devolved Admin-rentals Under Non-pfi Operating Leases - Buildings,W1J 8BA,VENDOR
"Department for Business, Energy and Industrial Strategy","Department for Business, Energy and Industrial Strategy",01/04/2022,Accommodation & Building Management,Corporate Services - Commercial & Operations,Government Property Agency,437772,489.86,Mf Devolved Admin-accommodation & Building Management,W1J 8BA,VENDOR
"Department for Business, Energy and Industrial Strategy","Department for Business, Energy and Industrial Strategy",01/04/2022,Accommodation & Building Management,Corporate Services - Commercial & Operations,Government Property Agency,437772,590.00,Mf Devolved Admin-accommodation & Building Management,W1J 8BA,VENDOR
"Department for Business, Energy and Industrial Strategy","Department for Business, Energy and Industrial Strategy",01/04/2022,Accommodation & Building Management,Corporate Services - Commercial & Operations,Government Property Agency,437772,1437.50,Mf Devolved Admin-accommodation & Building Management,W1J 8BA,VENDOR
"Department for Business, Energy and Industrial Strategy","Department for Business, Energy and Industrial Strategy",01/04/2022,Accommodation & Building Management,Corporate Services - Commercial & Operations,Government Property Agency,437772,2240.26,Mf Devolved Admin-accommodation & Building Management,W1J 8BA,VENDOR
"Department for Business, Energy and Industrial Strategy","Department for Business, Energy and Industrial Strategy",01/04/2022,Accommodation & Building Management,Corporate Services - Commercial & Operations,Government Property Agency,437772,7736.29,Mf Devolved Admin-accommodation & Building Management,W1J 8BA,VENDOR
"Department for Business, Energy and Industrial Strategy","Department for Business, Energy and Industrial Strategy",01/04/2022,Accommodation & Building Management,Corporate Services - Commercial & Operations,Government Property Agency,437772,8118.26,Mf Devolved Admin-accommodation & Building Management,W1J 8BA,VENDOR
"Department for Business, Energy and Industrial Strategy","Department for Business, Energy and Industrial Strategy",01/04/2022,Rentals Under Non-pfi Operating Leases - Buildings,Corporate Services - Commercial & Operations,Government Property Agency,437772,32347.50,Mf Devolved Admin-rentals Under Non-pfi Operating Leases - Buildings,W1J 8BA,VENDOR
"Department for Business, Energy and Industrial Strategy","Department for Business, Energy and Industrial Strategy",01/04/2022,Accommodation & Building Management,Corporate Services - Commercial & Operations,Government Property Agency,437773,590.00,Mf Devolved Admin-accommodation & Building Management,W1J 8BA,VENDOR
"Department for Business, Energy and Industrial Strategy","Department for Business, Energy and Industrial Strategy",01/04/2022,Accommodation & Building Management,Corporate Services - Commercial & Operations,Government Property Agency,437773,1735.31,Mf Devolved Admin-accommodation & Building Management,W1J 8BA,VENDOR
"Department for Business, Energy and Industrial Strategy","Department for Business, Energy and Industrial Strategy",01/04/2022,Accommodation & Building Management,Corporate Services - Commercial & Operations,Government Property Agency,437773,3037.50,Mf Devolved Admin-accommodation & Building Management,W1J 8BA,VENDOR
"Department for Business, Energy and Industrial Strategy","Department for Business, Energy and Industrial Strategy",01/04/2022,Accommodation & Building Management,Corporate Services - Commercial & Operations,Government Property Agency,437773,7935.88,Mf Devolved Admin-accommodation & Building Management,W1J 8BA,VENDOR
"Department for Business, Energy and Industrial Strategy","Department for Business, Energy and Industrial Strategy",01/04/2022,Accommodation & Building Management,Corporate Services - Commercial & Operations,Government Property Agency,437773,27405.02,Mf Devolved Admin-accommodation & Building Management,W1J 8BA,VENDOR
"Department for Business, Energy and Industrial Strategy","Department for Business, Energy and Industrial Strategy",01/04/2022,Accommodation & Building Management,Corporate Services - Commercial & Operations,Government Property Agency,437773,28758.11,Mf Devolved Admin-accommodation & Building Management,W1J 8BA,VENDOR
"Department for Business, Energy and Industrial Strategy","Department for Business, Energy and Industrial Strategy",01/04/2022,Rentals Under Non-pfi Operating Leases - Buildings,Corporate Services - Commercial & Operations,Government Property Agency,437773,68652.25,Mf Devolved Admin-rentals Under Non-pfi Operating Leases - Buildings,W1J 8BA,VENDOR
"Department for Business, Energy and Industrial Strategy","Department for Business, Energy and Industrial Strategy",01/04/2022,Accommodation & Building Management,Corporate Services - Commercial & Operations,Government Property Agency,437777,590.00,Mf Devolved Admin-accommodation & Building Management,W1J 8BA,VENDOR
"Department for Business, Energy and Industrial Strategy","Department for Business, Energy and Industrial Strategy",01/04/2022,Accommodation & Building Management,Corporate Services - Commercial & Operations,Government Property Agency,437777,686.06,Mf Devolved Admin-accommodation & Building Management,W1J 8BA,VENDOR
"Department for Business, Energy and Industrial Strategy","Department for Business, Energy and Industrial Strategy",01/04/2022,Accommodation & Building Management,Corporate Services - Commercial & Operations,Government Property Agency,437777,3037.50,Mf Devolved Admin-accommodation & Building Management,W1J 8BA,VENDOR
"Department for Business, Energy and Industrial Strategy","Department for Business, Energy and Industrial Strategy",01/04/2022,Accommodation & Building Management,Corporate Services - Commercial & Operations,Government Property Agency,437777,3137.52,Mf Devolved Admin-accommodation & Building Management,W1J 8BA,VENDOR
"Department for Business, Energy and Industrial Strategy","Department for Business, Energy and Industrial Strategy",01/04/2022,Accommodation & Building Management,Corporate Services - Commercial & Operations,Government Property Agency,437777,10834.80,Mf Devolved Admin-accommodation & Building Management,W1J 8BA,VENDOR
"Department for Business, Energy and Industrial Strategy","Department for Business, Energy and Industrial Strategy",01/04/2022,Accommodation & Building Management,Corporate Services - Commercial & Operations,Government Property Agency,437777,11369.76,Mf Devolved Admin-accommodation & Building Management,W1J 8BA,VENDOR
"Department for Business, Energy and Industrial Strategy","Department for Business, Energy and Industrial Strategy",01/04/2022,Rentals Under Non-pfi Operating Leases - Buildings,Corporate Services - Commercial & Operations,Government Property Agency,437777,26944.50,Mf Devolved Admin-rentals Under Non-pfi Operating Leases - Buildings,W1J 8BA,VENDOR
"Department for Business, Energy and Industrial Strategy","Department for Business, Energy and Industrial Strategy",01/04/2022,Accommodation & Building Management,Corporate Services - Commercial & Operations,Government Property Agency,437782,590.00,Mf Devolved Admin-accommodation & Building Management,W1J 8BA,VENDOR
"Department for Business, Energy and Industrial Strategy","Department for Business, Energy and Industrial Strategy",01/04/2022,Accommodation & Building Management,Corporate Services - Commercial & Operations,Government Property Agency,437782,3037.50,Mf Devolved Admin-accommodation & Building Management,W1J 8BA,VENDOR
"Department for Business, Energy and Industrial Strategy","Department for Business, Energy and Industrial Strategy",01/04/2022,Accommodation & Building Management,Corporate Services - Commercial & Operations,Government Property Agency,437784,7387.93,Mf Devolved Admin-accommodation & Building Management,W1J 8BA,VENDOR
"Department for Business, Energy and Industrial Strategy","Department for Business, Energy and Industrial Strategy",01/04/2022,Accommodation & Building Management,Corporate Services - Commercial & Operations,Government Property Agency,437784,20183.99,Mf Devolved Admin-accommodation & Building Management,W1J 8BA,VENDOR
"Department for Business, Energy and Industrial Strategy","Department for Business, Energy and Industrial Strategy",01/04/2022,Rentals Under Non-pfi Operating Leases - Buildings,Corporate Services - Commercial & Operations,Government Property Agency,437785,19512.50,Mf Devolved Admin-rentals Under Non-pfi Operating Leases - Buildings,W1J 8BA,VENDOR
"Department for Business, Energy and Industrial Strategy","Department for Business, Energy and Industrial Strategy",01/04/2022,Accommodation & Building Management,Corporate Services - Commercial & Operations,Government Property Agency,437791,1437.50,Mf Devolved Admin-accommodation & Building Management,W1J 8BA,VENDOR
"Department for Business, Energy and Industrial Strategy","Department for Business, Energy and Industrial Strategy",01/04/2022,Accommodation & Building Management,Corporate Services - Commercial & Operations,Government Property Agency,437791,2069.99,Mf Devolved Admin-accommodation & Building Management,W1J 8BA,VENDOR
"Department for Business, Energy and Industrial Strategy","Department for Business, Energy and Industrial Strategy",01/04/2022,Accommodation & Building Management,Corporate Services - Commercial & Operations,Government Property Agency,437791,2140.00,Mf Devolved Admin-accommodation & Building Management,W1J 8BA,VENDOR
"Department for Business, Energy and Industrial Strategy","Department for Business, Energy and Industrial Strategy",01/04/2022,Accommodation & Building Management,Corporate Services - Commercial & Operations,Government Property Agency,437791,3342.16,Mf Devolved Admin-accommodation & Building Management,W1J 8BA,VENDOR
"Department for Business, Energy and Industrial Strategy","Department for Business, Energy and Industrial Strategy",01/04/2022,Rentals Under Non-pfi Operating Leases - Buildings,Corporate Services - Commercial & Operations,Government Property Agency,437791,6263.00,Mf Devolved Admin-rentals Under Non-pfi Operating Leases - Buildings,W1J 8BA,VENDOR
"Department for Business, Energy and Industrial Strategy","Department for Business, Energy and Industrial Strategy",01/04/2022,Accommodation & Building Management,Corporate Services - Commercial & Operations,Government Property Agency,437793,2027.50,Mf Devolved Admin-accommodation & Building Management,W1J 8BA,VENDOR
"Department for Business, Energy and Industrial Strategy","Department for Business, Energy and Industrial Strategy",01/04/2022,Rentals Under Non-pfi Operating Leases - Buildings,Corporate Services - Commercial & Operations,Government Property Agency,437793,2206.75,Mf Devolved Admin-rentals Under Non-pfi Operating Leases - Buildings,W1J 8BA,VENDOR
"Department for Business, Energy and Industrial Strategy","Department for Business, Energy and Industrial Strategy",01/04/2022,Accommodation & Building Management,Corporate Services - Commercial & Operations,Government Property Agency,437797,3627.50,Mf Devolved Admin-accommodation & Building Management,W1J 8BA,VENDOR
"Department for Business, Energy and Industrial Strategy","Department for Business, Energy and Industrial Strategy",01/04/2022,Rentals Under Non-pfi Operating Leases - Buildings,Corporate Services - Commercial & Operations,Government Property Agency,437797,27500.00,Mf Devolved Admin-rentals Under Non-pfi Operating Leases - Buildings,W1J 8BA,VENDOR
"Department for Business, Energy and Industrial Strategy","Department for Business, Energy and Industrial Strategy",01/04/2022,Accommodation & Building Management,Corporate Services - Commercial & Operations,Government Property Agency,437799,4728.71,Mf Devolved Admin-accommodation & Building Management,W1J 8BA,VENDOR
"Department for Business, Energy and Industrial Strategy","Department for Business, Energy and Industrial Strategy",01/04/2022,Accommodation & Building Management,Corporate Services - Commercial & Operations,Government Property Agency,437799,387.50,Mf Devolved Admin-accommodation & Building Management,W1J 8BA,VENDOR
"Department for Business, Energy and Industrial Strategy","Department for Business, Energy and Industrial Strategy",01/04/2022,Accommodation & Building Management,Corporate Services - Commercial & Operations,Government Property Agency,437799,590.00,Mf Devolved Admin-accommodation & Building Management,W1J 8BA,VENDOR
"Department for Business, Energy and Industrial Strategy","Department for Business, Energy and Industrial Strategy",01/04/2022,Accommodation & Building Management,Corporate Services - Commercial & Operations,Government Property Agency,437799,1437.50,Mf Devolved Admin-accommodation & Building Management,W1J 8BA,VENDOR
"Department for Business, Energy and Industrial Strategy","Department for Business, Energy and Industrial Strategy",01/04/2022,Accommodation & Building Management,Corporate Services - Commercial & Operations,Government Property Agency,437799,2000.00,Mf Devolved Admin-accommodation & Building Management,W1J 8BA,VENDOR
"Department for Business, Energy and Industrial Strategy","Department for Business, Energy and Industrial Strategy",01/04/2022,Accommodation & Building Management,Corporate Services - Commercial & Operations,Government Property Agency,437799,2036.91,Mf Devolved Admin-accommodation & Building Management,W1J 8BA,VENDOR
"Department for Business, Energy and Industrial Strategy","Department for Business, Energy and Industrial Strategy",01/04/2022,Rentals Under Non-pfi Operating Leases - Buildings,Corporate Services - Commercial & Operations,Government Property Agency,437799,6418.05,Mf Devolved Admin-rentals Under Non-pfi Operating Leases - Buildings,W1J 8BA,VENDOR
"Department for Business, Energy and Industrial Strategy","Department for Business, Energy and Industrial Strategy",01/04/2022,Accommodation & Building Management,Corporate Services - Commercial & Operations,Government Property Agency,437803,180.95,Mf Devolved Admin-accommodation & Building Management,W1J 8BA,VENDOR
"Department for Business, Energy and Industrial Strategy","Department for Business, Energy and Industrial Strategy",01/04/2022,Accommodation & Building Management,Corporate Services - Commercial & Operations,Government Property Agency,437803,590.00,Mf Devolved Admin-accommodation & Building Management,W1J 8BA,VENDOR
"Department for Business, Energy and Industrial Strategy","Department for Business, Energy and Industrial Strategy",01/04/2022,Accommodation & Building Management,Corporate Services - Commercial & Operations,Government Property Agency,437803,911.65,Mf Devolved Admin-accommodation & Building Management,W1J 8BA,VENDOR
"Department for Business, Energy and Industrial Strategy","Department for Business, Energy and Industrial Strategy",01/04/2022,Accommodation & Building Management,Corporate Services - Commercial & Operations,Government Property Agency,437803,3037.50,Mf Devolved Admin-accommodation & Building Management,W1J 8BA,VENDOR
"Department for Business, Energy and Industrial Strategy","Department for Business, Energy and Industrial Strategy",01/04/2022,Accommodation & Building Management,Corporate Services - Commercial & Operations,Government Property Agency,437803,25880.00,Mf Devolved Admin-accommodation & Building Management,W1J 8BA,VENDOR
"Department for Business, Energy and Industrial Strategy","Department for Business, Energy and Industrial Strategy",01/04/2022,Accommodation & Building Management,Corporate Services - Commercial & Operations,Government Property Agency,437803,30639.40,Mf Devolved Admin-accommodation & Building Management,W1J 8BA,VENDOR
"Department for Business, Energy and Industrial Strategy","Department for Business, Energy and Industrial Strategy",01/04/2022,Rentals Under Non-pfi Operating Leases - Buildings,Corporate Services - Commercial & Operations,Government Property Agency,437803,120197.00,Mf Devolved Admin-rentals Under Non-pfi Operating Leases - Buildings,W1J 8BA,VENDOR
"Department for Business, Energy and Industrial Strategy","Department for Business, Energy and Industrial Strategy",01/04/2022,Accommodation & Building Management,Corporate Services - Commercial & Operations,Government Property Agency,437806,590.00,Mf Devolved Admin-accommodation & Building Management,W1J 8BA,VENDOR
"Department for Business, Energy and Industrial Strategy","Department for Business, Energy and Industrial Strategy",01/04/2022,Accommodation & Building Management,Corporate Services - Commercial & Operations,Government Property Agency,437806,2090.27,Mf Devolved Admin-accommodation & Building Management,W1J 8BA,VENDOR
"Department for Business, Energy and Industrial Strategy","Department for Business, Energy and Industrial Strategy",01/04/2022,Accommodation & Building Management,Corporate Services - Commercial & Operations,Government Property Agency,437806,3037.50,Mf Devolved Admin-accommodation & Building Management,W1J 8BA,VENDOR
"Department for Business, Energy and Industrial Strategy","Department for Business, Energy and Industrial Strategy",01/04/2022,Accommodation & Building Management,Corporate Services - Commercial & Operations,Government Property Agency,437806,3109.46,Mf Devolved Admin-accommodation & Building Management,W1J 8BA,VENDOR
"Department for Business, Energy and Industrial Strategy","Department for Business, Energy and Industrial Strategy",01/04/2022,Accommodation & Building Management,Corporate Services - Commercial & Operations,Government Property Agency,437806,3742.50,Mf Devolved Admin-accommodation & Building Management,W1J 8BA,VENDOR
"Department for Business, Energy and Industrial Strategy","Department for Business, Energy and Industrial Strategy",01/04/2022,Rentals Under Non-pfi Operating Leases - Buildings,Corporate Services - Commercial & Operations,Government Property Agency,437806,12600.00,Mf Devolved Admin-rentals Under Non-pfi Operating Leases - Buildings,W1J 8BA,VENDOR
"Department for Business, Energy and Industrial Strategy","Department for Business, Energy and Industrial Strategy",01/04/2022,Accommodation & Building Management,Corporate Services - Commercial & Operations,Government Property Agency,437806,54126.30,Mf Devolved Admin-accommodation & Building Management,W1J 8BA,VENDOR
"Department for Business, Energy and Industrial Strategy","Department for Business, Energy and Industrial Strategy",01/04/2022,Accommodation & Building Management,Corporate Services - Commercial & Operations,Government Property Agency,437807,590.00,Mf Devolved Admin-accommodation & Building Management,W1J 8BA,VENDOR
"Department for Business, Energy and Industrial Strategy","Department for Business, Energy and Industrial Strategy",01/04/2022,Rentals Under Non-pfi Operating Leases - Buildings,Corporate Services - Commercial & Operations,Government Property Agency,437807,1350.00,Mf Devolved Admin-rentals Under Non-pfi Operating Leases - Buildings,W1J 8BA,VENDOR
"Department for Business, Energy and Industrial Strategy","Department for Business, Energy and Industrial Strategy",01/04/2022,Accommodation & Building Management,Corporate Services - Commercial & Operations,Government Property Agency,437807,1437.50,Mf Devolved Admin-accommodation & Building Management,W1J 8BA,VENDOR
"Department for Business, Energy and Industrial Strategy","Department for Business, Energy and Industrial Strategy",01/04/2022,Accommodation & Building Management,Corporate Services - Commercial & Operations,Government Property Agency,437810,590.00,Mf Devolved Admin-accommodation & Building Management,W1J 8BA,VENDOR
"Department for Business, Energy and Industrial Strategy","Department for Business, Energy and Industrial Strategy",01/04/2022,Accommodation & Building Management,Corporate Services - Commercial & Operations,Government Property Agency,437810,2178.00,Mf Devolved Admin-accommodation & Building Management,W1J 8BA,VENDOR
"Department for Business, Energy and Industrial Strategy","Department for Business, Energy and Industrial Strategy",01/04/2022,Accommodation & Building Management,Corporate Services - Commercial & Operations,Government Property Agency,437810,3037.50,Mf Devolved Admin-accommodation & Building Management,W1J 8BA,VENDOR
"Department for Business, Energy and Industrial Strategy","Department for Business, Energy and Industrial Strategy",01/04/2022,Accommodation & Building Management,Corporate Services - Commercial & Operations,Government Property Agency,437810,9171.87,Mf Devolved Admin-accommodation & Building Management,W1J 8BA,VENDOR
"Department for Business, Energy and Industrial Strategy","Department for Business, Energy and Industrial Strategy",01/04/2022,Accommodation & Building Management,Corporate Services - Commercial & Operations,Government Property Agency,437810,19988.00,Mf Devolved Admin-accommodation & Building Management,W1J 8BA,VENDOR
"Department for Business, Energy and Industrial Strategy","Department for Business, Energy and Industrial Strategy",01/04/2022,Accommodation & Building Management,Corporate Services - Commercial & Operations,Government Property Agency,437810,26476.58,Mf Devolved Admin-accommodation & Building Management,W1J 8BA,VENDOR
"Department for Business, Energy and Industrial Strategy","Department for Business, Energy and Industrial Strategy",01/04/2022,Rentals Under Non-pfi Operating Leases - Buildings,Corporate Services - Commercial & Operations,Government Property Agency,437810,58530.00,Mf Devolved Admin-rentals Under Non-pfi Operating Leases - Buildings,W1J 8BA,VENDOR
"Department for Business, Energy and Industrial Strategy","Department for Business, Energy and Industrial Strategy",01/04/2022,Accommodation & Building Management,Corporate Services - Commercial & Operations,Government Property Agency,437812,590.00,Mf Devolved Admin-accommodation & Building Management,W1J 8BA,VENDOR
"Department for Business, Energy and Industrial Strategy","Department for Business, Energy and Industrial Strategy",01/04/2022,Accommodation & Building Management,Corporate Services - Commercial & Operations,Government Property Agency,437812,3037.50,Mf Devolved Admin-accommodation & Building Management,W1J 8BA,VENDOR
"Department for Business, Energy and Industrial Strategy","Department for Business, Energy and Industrial Strategy",01/04/2022,Accommodation & Building Management,Corporate Services - Commercial & Operations,Government Property Agency,437812,5910.85,Mf Devolved Admin-accommodation & Building Management,W1J 8BA,VENDOR
"Department for Business, Energy and Industrial Strategy","Department for Business, Energy and Industrial Strategy",01/04/2022,Accommodation & Building Management,Corporate Services - Commercial & Operations,Government Property Agency,437812,53651.48,Mf Devolved Admin-accommodation & Building Management,W1J 8BA,VENDOR
"Department for Business, Energy and Industrial Strategy","Department for Business, Energy and Industrial Strategy",01/04/2022,Accommodation & Building Management,Corporate Services - Commercial & Operations,Government Property Agency,437812,54038.00,Mf Devolved Admin-accommodation & Building Management,W1J 8BA,VENDOR
"Department for Business, Energy and Industrial Strategy","Department for Business, Energy and Industrial Strategy",01/04/2022,Accommodation & Building Management,Corporate Services - Commercial & Operations,Government Property Agency,437812,63934.76,Mf Devolved Admin-accommodation & Building Management,W1J 8BA,VENDOR
"Department for Business, Energy and Industrial Strategy","Department for Business, Energy and Industrial Strategy",01/04/2022,Rentals Under Non-pfi Operating Leases - Buildings,Corporate Services - Commercial & Operations,Government Property Agency,437812,164880.00,Mf Devolved Admin-rentals Under Non-pfi Operating Leases - Buildings,W1J 8BA,VENDOR
"Department for Business, Energy and Industrial Strategy","Department for Business, Energy and Industrial Strategy",01/04/2022,Accommodation & Building Management,Corporate Services - Commercial & Operations,Government Property Agency,437816,265.83,Mf Devolved Admin-accommodation & Building Management,W1J 8BA,VENDOR
"Department for Business, Energy and Industrial Strategy","Department for Business, Energy and Industrial Strategy",01/04/2022,Accommodation & Building Management,Corporate Services - Commercial & Operations,Government Property Agency,437816,590.00,Mf Devolved Admin-accommodation & Building Management,W1J 8BA,VENDOR
"Department for Business, Energy and Industrial Strategy","Department for Business, Energy and Industrial Strategy",01/04/2022,Accommodation & Building Management,Corporate Services - Commercial & Operations,Government Property Agency,437816,1021.72,Mf Devolved Admin-accommodation & Building Management,W1J 8BA,VENDOR
"Department for Business, Energy and Industrial Strategy","Department for Business, Energy and Industrial Strategy",01/04/2022,Accommodation & Building Management,Corporate Services - Commercial & Operations,Government Property Agency,437816,1437.50,Mf Devolved Admin-accommodation & Building Management,W1J 8BA,VENDOR
"Department for Business, Energy and Industrial Strategy","Department for Business, Energy and Industrial Strategy",01/04/2022,Accommodation & Building Management,Corporate Services - Commercial & Operations,Government Property Agency,437816,3100.43,Mf Devolved Admin-accommodation & Building Management,W1J 8BA,VENDOR
"Department for Business, Energy and Industrial Strategy","Department for Business, Energy and Industrial Strategy",01/04/2022,Accommodation & Building Management,Corporate Services - Commercial & Operations,Government Property Agency,437816,3811.55,Mf Devolved Admin-accommodation & Building Management,W1J 8BA,VENDOR
"Department for Business, Energy and Industrial Strategy","Department for Business, Energy and Industrial Strategy",01/04/2022,Rentals Under Non-pfi Operating Leases - Buildings,Corporate Services - Commercial & Operations,Government Property Agency,437816,19485.33,Mf Devolved Admin-rentals Under Non-pfi Operating Leases - Buildings,W1J 8BA,VENDOR
"Department for Business, Energy and Industrial Strategy","Department for Business, Energy and Industrial Strategy",01/04/2022,Accommodation & Building Management,Corporate Services - Commercial & Operations,Government Property Agency,437833,590.00,Mf Devolved Admin-accommodation & Building Management,W1J 8BA,VENDOR
"Department for Business, Energy and Industrial Strategy","Department for Business, Energy and Industrial Strategy",01/04/2022,Accommodation & Building Management,Corporate Services - Commercial & Operations,Government Property Agency,437833,1437.50,Mf Devolved Admin-accommodation & Building Management,W1J 8BA,VENDOR
"Department for Business, Energy and Industrial Strategy","Department for Business, Energy and Industrial Strategy",01/04/2022,Rentals Under Non-pfi Operating Leases - Buildings,Corporate Services - Commercial & Operations,Government Property Agency,437833,1730.00,Mf Devolved Admin-rentals Under Non-pfi Operating Leases - Buildings,W1J 8BA,VENDOR
"Department for Business, Energy and Industrial Strategy","Department for Business, Energy and Industrial Strategy",01/04/2022,Accommodation & Building Management,Corporate Services - Commercial & Operations,Government Property Agency,437834,590.00,Mf Devolved Admin-accommodation & Building Management,W1J 8BA,VENDOR
"Department for Business, Energy and Industrial Strategy","Department for Business, Energy and Industrial Strategy",01/04/2022,Accommodation & Building Management,Corporate Services - Commercial & Operations,Government Property Agency,437834,3037.50,Mf Devolved Admin-accommodation & Building Management,W1J 8BA,VENDOR
"Department for Business, Energy and Industrial Strategy","Department for Business, Energy and Industrial Strategy",01/04/2022,Accommodation & Building Management,Corporate Services - Commercial & Operations,Government Property Agency,437834,27821.50,Mf Devolved Admin-accommodation & Building Management,W1J 8BA,VENDOR
"Department for Business, Energy and Industrial Strategy","Department for Business, Energy and Industrial Strategy",01/04/2022,Accommodation & Building Management,Corporate Services - Commercial & Operations,Government Property Agency,437834,41288.10,Mf Devolved Admin-accommodation & Building Management,W1J 8BA,VENDOR
"Department for Business, Energy and Industrial Strategy","Department for Business, Energy and Industrial Strategy",01/04/2022,Rentals Under Non-pfi Operating Leases - Buildings,Corporate Services - Commercial & Operations,Government Property Agency,437834,81229.00,Mf Devolved Admin-rentals Under Non-pfi Operating Leases - Buildings,W1J 8BA,VENDOR
"Department for Business, Energy and Industrial Strategy","Department for Business, Energy and Industrial Strategy",01/04/2022,Accommodation & Building Management,Corporate Services - Commercial & Operations,Government Property Agency,437835,590.00,Mf Devolved Admin-accommodation & Building Management,W1J 8BA,VENDOR
"Department for Business, Energy and Industrial Strategy","Department for Business, Energy and Industrial Strategy",01/04/2022,Accommodation & Building Management,Corporate Services - Commercial & Operations,Government Property Agency,437835,659.00,Mf Devolved Admin-accommodation & Building Management,W1J 8BA,VENDOR
"Department for Business, Energy and Industrial Strategy","Department for Business, Energy and Industrial Strategy",01/04/2022,Accommodation & Building Management,Corporate Services - Commercial & Operations,Government Property Agency,437835,3037.50,Mf Devolved Admin-accommodation & Building Management,W1J 8BA,VENDOR
"Department for Business, Energy and Industrial Strategy","Department for Business, Energy and Industrial Strategy",01/04/2022,Accommodation & Building Management,Corporate Services - Commercial & Operations,Government Property Agency,437835,4403.41,Mf Devolved Admin-accommodation & Building Management,W1J 8BA,VENDOR
"Department for Business, Energy and Industrial Strategy","Department for Business, Energy and Industrial Strategy",01/04/2022,Accommodation & Building Management,Corporate Services - Commercial & Operations,Government Property Agency,437835,8757.55,Mf Devolved Admin-accommodation & Building Management,W1J 8BA,VENDOR
"Department for Business, Energy and Industrial Strategy","Department for Business, Energy and Industrial Strategy",01/04/2022,Rentals Under Non-pfi Operating Leases - Buildings,Corporate Services - Commercial & Operations,Government Property Agency,437835,12305.88,Mf Devolved Admin-rentals Under Non-pfi Operating Leases - Buildings,W1J 8BA,VENDOR
"Department for Business, Energy and Industrial Strategy","Department for Business, Energy and Industrial Strategy",07/04/2022,Accommodation & Building Management,Corporate Services - Commercial & Operations,Government Property Agency,439193,210.00,Mf Devolved Admin-accommodation & Building Management,W1J 8BA,VENDOR
"Department for Business, Energy and Industrial Strategy","Department for Business, Energy and Industrial Strategy",08/04/2022,Accommodation & Building Management,Corporate Services - Commercial & Operations,Government Property Agency,439517,2052.28,Mf Devolved Admin-accommodation & Building Management,B2 5LS,VENDOR
"Department for Business, Energy and Industrial Strategy","Department for Business, Energy and Industrial Strategy",08/04/2022,Accommodation & Building Management,Corporate Services - Commercial & Operations,Government Property Agency,439541,749.28,Mf Devolved Admin-accommodation & Building Management,B2 5LS,VENDOR
"Department for Business, Energy and Industrial Strategy","Department for Business, Energy and Industrial Strategy",08/04/2022,Accommodation & Building Management,Corporate Services - Commercial & Operations,Government Property Agency,439541,1765.68,Mf Devolved Admin-accommodation & Building Management,B2 5LS,VENDOR
"Department for Business, Energy and Industrial Strategy","Department for Business, Energy and Industrial Strategy",08/04/2022,Ict Outsourcing & Maintenance/Support,Corporate Services - Commercial & Operations,Curran It And Electrical Services Ltd,439556,3312.00,Mf Devolved Admin-ict Outsourcing & Maintenance/Support,RM18 8RH,VENDOR
"Department for Business, Energy and Industrial Strategy","Department for Business, Energy and Industrial Strategy",11/04/2022,Accommodation & Building Management,Corporate Services - Commercial & Operations,Government Property Agency,439585,590.00,Mf Devolved Admin-accommodation & Building Management,W1J 8BA,VENDOR
"Department for Business, Energy and Industrial Strategy","Department for Business, Energy and Industrial Strategy",11/04/2022,Accommodation & Building Management,Corporate Services - Commercial & Operations,Government Property Agency,439585,2939.21,Mf Devolved Admin-accommodation & Building Management,W1J 8BA,VENDOR
"Department for Business, Energy and Industrial Strategy","Department for Business, Energy and Industrial Strategy",11/04/2022,Accommodation & Building Management,Corporate Services - Commercial & Operations,Government Property Agency,439585,3037.50,Mf Devolved Admin-accommodation & Building Management,W1J 8BA,VENDOR
"Department for Business, Energy and Industrial Strategy","Department for Business, Energy and Industrial Strategy",11/04/2022,Rentals Under Non-pfi Operating Leases - Buildings,Corporate Services - Commercial & Operations,Government Property Agency,439585,7944.50,Mf Devolved Admin-rentals Under Non-pfi Operating Leases - Buildings,W1J 8BA,VENDOR
"Department for Business, Energy and Industrial Strategy","Department for Business, Energy and Industrial Strategy",11/04/2022,Accommodation & Building Management,Corporate Services - Commercial & Operations,Government Property Agency,439585,8755.30,Mf Devolved Admin-accommodation & Building Management,W1J 8BA,VENDOR
"Department for Business, Energy and Industrial Strategy","Department for Business, Energy and Industrial Strategy",11/04/2022,Accommodation & Building Management,Corporate Services - Commercial & Operations,Government Property Agency,439585,46054.09,Mf Devolved Admin-accommodation & Building Management,W1J 8BA,VENDOR
"Department for Business, Energy and Industrial Strategy","Department for Business, Energy and Industrial Strategy",11/04/2022,Accommodation & Building Management,Corporate Services - Commercial & Operations,Government Property Agency,439585,66952.85,Mf Devolved Admin-accommodation & Building Management,W1J 8BA,VENDOR
"Department for Business, Energy and Industrial Strategy","Department for Business, Energy and Industrial Strategy",11/04/2022,Rentals Under Non-pfi Operating Leases - Buildings,Corporate Services - Commercial & Operations,Government Property Agency,439585,115211.50,Mf Devolved Admin-rentals Under Non-pfi Operating Leases - Buildings,W1J 8BA,VENDOR
"Department for Business, Energy and Industrial Strategy","Department for Business, Energy and Industrial Strategy",11/04/2022,Accommodation & Building Management,Corporate Services - Commercial & Operations,Government Property Agency,439596,590.00,Mf Devolved Admin-accommodation & Building Management,W1J 8BA,VENDOR
"Department for Business, Energy and Industrial Strategy","Department for Business, Energy and Industrial Strategy",11/04/2022,Accommodation & Building Management,Corporate Services - Commercial & Operations,Government Property Agency,439596,954.75,Mf Devolved Admin-accommodation & Building Management,W1J 8BA,VENDOR
"Department for Business, Energy and Industrial Strategy","Department for Business, Energy and Industrial Strategy",11/04/2022,Accommodation & Building Management,Corporate Services - Commercial & Operations,Government Property Agency,439596,1322.79,Mf Devolved Admin-accommodation & Building Management,W1J 8BA,VENDOR
"Department for Business, Energy and Industrial Strategy","Department for Business, Energy and Industrial Strategy",11/04/2022,Accommodation & Building Management,Corporate Services - Commercial & Operations,Government Property Agency,439596,2779.98,Mf Devolved Admin-accommodation & Building Management,W1J 8BA,VENDOR
"Department for Business, Energy and Industrial Strategy","Department for Business, Energy and Industrial Strategy",11/04/2022,Accommodation & Building Management,Corporate Services - Commercial & Operations,Government Property Agency,439596,3037.50,Mf Devolved Admin-accommodation & Building Management,W1J 8BA,VENDOR
"Department for Business, Energy and Industrial Strategy","Department for Business, Energy and Industrial Strategy",11/04/2022,Accommodation & Building Management,Corporate Services - Commercial & Operations,Government Property Agency,439596,5288.53,Mf Devolved Admin-accommodation & Building Management,W1J 8BA,VENDOR
"Department for Business, Energy and Industrial Strategy","Department for Business, Energy and Industrial Strategy",11/04/2022,Rentals Under Non-pfi Operating Leases - Buildings,Corporate Services - Commercial & Operations,Government Property Agency,439596,9660.00,Mf Devolved Admin-rentals Under Non-pfi Operating Leases - Buildings,W1J 8BA,VENDOR
"Department for Business, Energy and Industrial Strategy","Department for Business, Energy and Industrial Strategy",12/04/2022,Catering Services,Corporate Services - Commercial & Operations,Aramark Ltd,439830,60572.74,Mf Devolved Admin-catering Services,LS16 6QY,VENDOR
"Department for Business, Energy and Industrial Strategy","Department for Business, Energy and Industrial Strategy",12/04/2022,Other Accommodation Charges,Corporate Services - Commercial & Operations,Matrix Booking Ltd,439849,98882.40,Mf Devolved Admin-other Accommodation Charges,W1D 3QL,VENDOR
"Department for Business, Energy and Industrial Strategy","Department for Business, Energy and Industrial Strategy",12/04/2022,Accommodation & Building Management,Corporate Services - Commercial & Operations,Government Property Agency,439854,5610.00,Mf Devolved Admin-accommodation & Building Management,B2 5LS,VENDOR
"Department for Business, Energy and Industrial Strategy","Department for Business, Energy and Industrial Strategy",12/04/2022,Accommodation & Building Management,Corporate Services - Commercial & Operations,Government Property Agency,439854,7569.60,Mf Devolved Admin-accommodation & Building Management,B2 5LS,VENDOR
"Department for Business, Energy and Industrial Strategy","Department for Business, Energy and Industrial Strategy",27/04/2022,Rentals Under Non-pfi Operating Leases - Buildings,Corporate Services - Commercial & Operations,Government Property Agency,441678,59536.65,Mf Devolved Admin-rentals Under Non-pfi Operating Leases - Buildings,W1J 8BA,VENDOR
"Department for Business, Energy and Industrial Strategy","Department for Business, Energy and Industrial Strategy",26/04/2022,Accommodation & Building Management,Corporate Services - Commercial & Operations,Government Property Agency,441680,18304.00,Mf Devolved Admin-accommodation & Building Management,W1J 8BA,VENDOR
"Department for Business, Energy and Industrial Strategy","Department for Business, Energy and Industrial Strategy",26/04/2022,Accommodation & Building Management,Corporate Services - Commercial & Operations,Government Property Agency,441680,18344.25,Mf Devolved Admin-accommodation & Building Management,W1J 8BA,VENDOR
"Department for Business, Energy and Industrial Strategy","Department for Business, Energy and Industrial Strategy",27/04/2022,Accommodation & Building Management,Corporate Services - Commercial & Operations,Government Property Agency,441683,590.00,Mf Devolved Admin-accommodation & Building Management,W1J 8BA,VENDOR
"Department for Business, Energy and Industrial Strategy","Department for Business, Energy and Industrial Strategy",27/04/2022,Accommodation & Building Management,Corporate Services - Commercial & Operations,Government Property Agency,441683,2299.27,Mf Devolved Admin-accommodation & Building Management,W1J 8BA,VENDOR
"Department for Business, Energy and Industrial Strategy","Department for Business, Energy and Industrial Strategy",27/04/2022,Accommodation & Building Management,Corporate Services - Commercial & Operations,Government Property Agency,441683,3037.50,Mf Devolved Admin-accommodation & Building Management,W1J 8BA,VENDOR
"Department for Business, Energy and Industrial Strategy","Department for Business, Energy and Industrial Strategy",27/04/2022,Ict Outsourcing & Maintenance/Support,Corporate Services - Commercial & Operations,Curran It And Electrical Services Ltd,442186,1640.00,Mf Devolved Admin-ict Outsourcing & Maintenance/Support,RM18 8RH,VENDOR
"Department for Business, Energy and Industrial Strategy","Department for Business, Energy and Industrial Strategy",27/04/2022,Clearing Account - Cost - Leasehold Improvements,Corporate Services - Commercial & Operations,Government Property Agency,440816,1853.27,Estates Infrastructure And Maintenance-clearing Account - Cost - Leasehold Improvements,B2 5LS,VENDOR
"Department for Business, Energy and Industrial Strategy","Department for Business, Energy and Industrial Strategy",27/04/2022,Clearing Account - Cost - Leasehold Improvements,Corporate Services - Commercial & Operations,Government Property Agency,440816,74130.72,Estates Infrastructure And Maintenance-clearing Account - Cost - Leasehold Improvements,B2 5LS,VENDOR
"Department for Business, Energy and Industrial Strategy","Department for Business, Energy and Industrial Strategy",27/04/2022,Clearing Account - Cost - Leasehold Improvements,Corporate Services - Commercial & Operations,Government Property Agency,440819,9765.29,Estates Infrastructure And Maintenance-clearing Account - Cost - Leasehold Improvements,B2 5LS,VENDOR
"Department for Business, Energy and Industrial Strategy","Department for Business, Energy and Industrial Strategy",27/04/2022,Clearing Account - Cost - Leasehold Improvements,Corporate Services - Commercial & Operations,Government Property Agency,440819,390611.44,Estates Infrastructure And Maintenance-clearing Account - Cost - Leasehold Improvements,B2 5LS,VENDOR
"Department for Business, Energy and Industrial Strategy","Department for Business, Energy and Industrial Strategy",27/04/2022,Clearing Account - Cost - Leasehold Improvements,Corporate Services - Commercial & Operations,Government Property Agency,440821,1691.50,Estates Infrastructure And Maintenance-clearing Account - Cost - Leasehold Improvements,W1J 8BA,VENDOR
"Department for Business, Energy and Industrial Strategy","Department for Business, Energy and Industrial Strategy",27/04/2022,Clearing Account - Cost - Leasehold Improvements,Corporate Services - Commercial & Operations,Government Property Agency,440821,67659.62,Estates Infrastructure And Maintenance-clearing Account - Cost - Leasehold Improvements,W1J 8BA,VENDOR
"Department for Business, Energy and Industrial Strategy","Department for Business, Energy and Industrial Strategy",27/04/2022,Clearing Account - Cost - Leasehold Improvements,Corporate Services - Commercial & Operations,Government Property Agency,440827,3085.54,Estates Infrastructure And Maintenance-clearing Account - Cost - Leasehold Improvements,W1J 8BA,VENDOR
"Department for Business, Energy and Industrial Strategy","Department for Business, Energy and Industrial Strategy",27/04/2022,Clearing Account - Cost - Leasehold Improvements,Corporate Services - Commercial & Operations,Government Property Agency,442014,204887.29,Estates Infrastructure And Maintenance-clearing Account - Cost - Leasehold Improvements,B2 5LS,VENDOR
"Department for Business, Energy and Industrial Strategy","Department for Business, Energy and Industrial Strategy",04/04/2022,Reprographic Services,Corporate Services - Commercial & Operations,Allied Publicity Services (Manchester) Ltd T/A Aps Group,438184,4416.17,Mf Devolved Admin-reprographic Services,SK3 0ZP,VENDOR
"Department for Business, Energy and Industrial Strategy","Department for Business, Energy and Industrial Strategy",04/04/2022,Reprographic Services,Corporate Services - Commercial & Operations,Allied Publicity Services (Manchester) Ltd T/A Aps Group,438184,36062.10,Mf Devolved Admin-reprographic Services,SK3 0ZP,VENDOR
"Department for Business, Energy and Industrial Strategy","Department for Business, Energy and Industrial Strategy",12/04/2022,Reprographic Services,Corporate Services - Commercial & Operations,Allied Publicity Services (Manchester) Ltd T/A Aps Group,439936,11044.80,Mf Devolved Admin-reprographic Services,SK3 0ZP,VENDOR
"Department for Business, Energy and Industrial Strategy","Department for Business, Energy and Industrial Strategy",29/04/2022,Reprographic Services,Corporate Services - Commercial & Operations,Allied Publicity Services (Manchester) Ltd T/A Aps Group,442531,380.22,Mf Devolved Admin-reprographic Services,SK3 0ZP,VENDOR
"Department for Business, Energy and Industrial Strategy","Department for Business, Energy and Industrial Strategy",29/04/2022,Reprographic Services,Corporate Services - Commercial & Operations,Allied Publicity Services (Manchester) Ltd T/A Aps Group,442531,420.69,Mf Devolved Admin-reprographic Services,SK3 0ZP,VENDOR
"Department for Business, Energy and Industrial Strategy","Department for Business, Energy and Industrial Strategy",01/04/2022,Technical Advice / Services & Support,Corporate Services - Commercial & Operations,Bsi Professional Services (Ireland) Ltd,434493,10718.75,Mf Devolved Admin-technical Advice / Services & Support,D18 CSK1,VENDOR
"Department for Business, Energy and Industrial Strategy","Department for Business, Energy and Industrial Strategy",01/04/2022,Technical Advice / Services & Support,Corporate Services - Commercial & Operations,Bsi Professional Services (Ireland) Ltd,437562,25235.00,Mf Devolved Admin-technical Advice / Services & Support,D18 CSK1,VENDOR
"Department for Business, Energy and Industrial Strategy","Department for Business, Energy and Industrial Strategy",01/04/2022,Consultancy Expenditure,Corporate Services - Commercial & Operations,Pricewaterhousecoopers Llp,437872,41500.00,Mf Devolved Admin-consultancy Expenditure,SE1 2RD,VENDOR
"Department for Business, Energy and Industrial Strategy","Department for Business, Energy and Industrial Strategy",01/04/2022,Subsistence Uk,Corporate Services - Commercial & Operations,"Personal Expense, Name Withheld",437969,1.55,Mf Devolved Admin-subsistence Uk,,EMPLOYEE
"Department for Business, Energy and Industrial Strategy","Department for Business, Energy and Industrial Strategy",01/04/2022,Subsistence Uk,Corporate Services - Commercial & Operations,"Personal Expense, Name Withheld",437969,3.40,Mf Devolved Admin-subsistence Uk,,EMPLOYEE
"Department for Business, Energy and Industrial Strategy","Department for Business, Energy and Industrial Strategy",01/04/2022,Rail Travel Uk,Corporate Services - Commercial & Operations,"Personal Expense, Name Withheld",437969,3.50,Mf Devolved Admin-rail Travel Uk,,EMPLOYEE
"Department for Business, Energy and Industrial Strategy","Department for Business, Energy and Industrial Strategy",01/04/2022,Subsistence Uk,Corporate Services - Commercial & Operations,"Personal Expense, Name Withheld",437969,3.68,Mf Devolved Admin-subsistence Uk,,EMPLOYEE
"Department for Business, Energy and Industrial Strategy","Department for Business, Energy and Industrial Strategy",01/04/2022,Subsistence Uk,Corporate Services - Commercial & Operations,"Personal Expense, Name Withheld",437969,4.30,Mf Devolved Admin-subsistence Uk,,EMPLOYEE
"Department for Business, Energy and Industrial Strategy","Department for Business, Energy and Industrial Strategy",01/04/2022,Subsistence Uk,Corporate Services - Commercial & Operations,"Personal Expense, Name Withheld",437969,4.50,Mf Devolved Admin-subsistence Uk,,EMPLOYEE
"Department for Business, Energy and Industrial Strategy","Department for Business, Energy and Industrial Strategy",01/04/2022,Rail Travel Uk,Corporate Services - Commercial & Operations,"Personal Expense, Name Withheld",437969,5.50,Mf Devolved Admin-rail Travel Uk,,EMPLOYEE
"Department for Business, Energy and Industrial Strategy","Department for Business, Energy and Industrial Strategy",01/04/2022,Rail Travel Uk,Corporate Services - Commercial & Operations,"Personal Expense, Name Withheld",437969,5.50,Mf Devolved Admin-rail Travel Uk,,EMPLOYEE
"Department for Business, Energy and Industrial Strategy","Department for Business, Energy and Industrial Strategy",01/04/2022,Subsistence Uk,Corporate Services - Commercial & Operations,"Personal Expense, Name Withheld",437969,7.49,Mf Devolved Admin-subsistence Uk,,EMPLOYEE
"Department for Business, Energy and Industrial Strategy","Department for Business, Energy and Industrial Strategy",01/04/2022,Subsistence Uk,Corporate Services - Commercial & Operations,"Personal Expense, Name Withheld",437969,7.99,Mf Devolved Admin-subsistence Uk,,EMPLOYEE
"Department for Business, Energy and Industrial Strategy","Department for Business, Energy and Industrial Strategy",01/04/2022,Taxi Services Uk,Corporate Services - Commercial & Operations,"Personal Expense, Name Withheld",437969,10.80,Mf Devolved Admin-taxi Services Uk,,EMPLOYEE
"Department for Business, Energy and Industrial Strategy","Department for Business, Energy and Industrial Strategy",01/04/2022,Taxi Services Uk,Corporate Services - Commercial & Operations,"Personal Expense, Name Withheld",437969,13.30,Mf Devolved Admin-taxi Services Uk,,EMPLOYEE
"Department for Business, Energy and Industrial Strategy","Department for Business, Energy and Industrial Strategy",05/04/2022,Consultancy Expenditure,Corporate Services - Commercial & Operations,Serco Ltd,438458,8450.00,Mf Devolved Admin-consultancy Expenditure,NN17 9GY,VENDOR
"Department for Business, Energy and Industrial Strategy","Department for Business, Energy and Industrial Strategy",05/04/2022,Legal Services And Advice Agency,Corporate Services - Commercial & Operations,Government Legal Department,438513,748.20,Mf Devolved Admin-legal Services And Advice Agency,WC2B 4TS,VENDOR
"Department for Business, Energy and Industrial Strategy","Department for Business, Energy and Industrial Strategy",06/04/2022,Hire Of Agency Staff,Corporate Services - Commercial & Operations,Alexander Mann Solutions Ltd,439009,1911.60,Mf Devolved Admin-hire Of Agency Staff,EC2N 3AQ,VENDOR
"Department for Business, Energy and Industrial Strategy","Department for Business, Energy and Industrial Strategy",06/04/2022,Hire Of Interim Managers,Corporate Services - Commercial & Operations,Alexander Mann Solutions Ltd,439011,1293.43,Mf Devolved Admin-hire Of Interim Managers,EC2N 3AQ,VENDOR
"Department for Business, Energy and Industrial Strategy","Department for Business, Energy and Industrial Strategy",11/04/2022,Consultancy Expenditure,Corporate Services - Commercial & Operations,Serco Ltd,439617,15300.00,Mf Devolved Admin-consultancy Expenditure,NN17 9GY,VENDOR
"Department for Business, Energy and Industrial Strategy","Department for Business, Energy and Industrial Strategy",12/04/2022,Guarding And Security Services,Corporate Services - Commercial & Operations,Visionist Ltd,440037,2805.00,Mf Devolved Admin-guarding And Security Services,BH24 3FG,VENDOR
"Department for Business, Energy and Industrial Strategy","Department for Business, Energy and Industrial Strategy",12/04/2022,Guarding And Security Services,Corporate Services - Commercial & Operations,Visionist Ltd,440039,2805.00,Mf Devolved Admin-guarding And Security Services,BH24 3FG,VENDOR
"Department for Business, Energy and Industrial Strategy","Department for Business, Energy and Industrial Strategy",13/04/2022,Hire Of Interim Managers,Corporate Services - Commercial & Operations,Alexander Mann Solutions Ltd,440120,1108.66,Mf Devolved Admin-hire Of Interim Managers,EC2N 3AQ,VENDOR
"Department for Business, Energy and Industrial Strategy","Department for Business, Energy and Industrial Strategy",22/04/2022,Hire Of Interim Managers,Corporate Services - Commercial & Operations,Alexander Mann Solutions Ltd,441307,739.10,Mf Devolved Admin-hire Of Interim Managers,EC2N 3AQ,VENDOR
"Department for Business, Energy and Industrial Strategy","Department for Business, Energy and Industrial Strategy",25/04/2022,Guarding And Security Services,Corporate Services - Commercial & Operations,Hm Revenue And Customs,441669,14690.07,Mf Devolved Admin-guarding And Security Services,BN12 4XJ,WGA ONLY
"Department for Business, Energy and Industrial Strategy","Department for Business, Energy and Industrial Strategy",21/04/2022,Central Telecommunications Services,"Corporate Services - Digital, Data & Technology",Exponential-e Ltd,407745,2819.38,Mf Devolved Admin-central Telecommunications Services,E1 8EU,VENDOR
"Department for Business, Energy and Industrial Strategy","Department for Business, Energy and Industrial Strategy",21/04/2022,Central Telecommunications Services,"Corporate Services - Digital, Data & Technology",Exponential-e Ltd,407746,2686.20,Mf Devolved Admin-central Telecommunications Services,E1 8EU,VENDOR
"Department for Business, Energy and Industrial Strategy","Department for Business, Energy and Industrial Strategy",28/04/2022,Central Telecommunications Services,"Corporate Services - Digital, Data & Technology",Vodafone Ltd,420533,907.62,Mf Devolved Admin-central Telecommunications Services,RG14 5FF,VENDOR
"Department for Business, Energy and Industrial Strategy","Department for Business, Energy and Industrial Strategy",28/04/2022,Central Telecommunications Services,"Corporate Services - Digital, Data & Technology",Vodafone Ltd,424381,907.62,Mf Devolved Admin-central Telecommunications Services,RG14 9LE,VENDOR
"Department for Business, Energy and Industrial Strategy","Department for Business, Energy and Industrial Strategy",27/04/2022,Central Telecommunications Services,"Corporate Services - Digital, Data & Technology",Vodafone Ltd,429138,2854.57,Mf Devolved Admin-central Telecommunications Services,RG14 2FN,VENDOR
"Department for Business, Energy and Industrial Strategy","Department for Business, Energy and Industrial Strategy",28/04/2022,Central Telecommunications Services,"Corporate Services - Digital, Data & Technology",Vodafone Ltd,429139,907.62,Mf Devolved Admin-central Telecommunications Services,RG14 2FN,VENDOR
"Department for Business, Energy and Industrial Strategy","Department for Business, Energy and Industrial Strategy",01/04/2022,It Software Licences And Software Maintenance,"Corporate Services - Digital, Data & Technology",Specialist Computer Centres (Ssc),429894,19921.05,Mf Devolved Admin-it Software Licences And Software Maintenance,B11 2LE,VENDOR
"Department for Business, Energy and Industrial Strategy","Department for Business, Energy and Industrial Strategy",21/04/2022,Central Telecommunications Services,"Corporate Services - Digital, Data & Technology",Exponential-e Ltd,432106,2686.20,Mf Devolved Admin-central Telecommunications Services,E1 8EU,VENDOR
"Department for Business, Energy and Industrial Strategy","Department for Business, Energy and Industrial Strategy",28/04/2022,Central Telecommunications Services,"Corporate Services - Digital, Data & Technology",Vodafone Ltd,433337,907.62,Mf Devolved Admin-central Telecommunications Services,RG14 9LE,VENDOR
"Department for Business, Energy and Industrial Strategy","Department for Business, Energy and Industrial Strategy",27/04/2022,Central Telecommunications Services,"Corporate Services - Digital, Data & Technology",Vodafone Ltd,433338,2825.45,Mf Devolved Admin-central Telecommunications Services,RG14 9LE,VENDOR
"Department for Business, Energy and Industrial Strategy","Department for Business, Energy and Industrial Strategy",04/04/2022,It Software Licences And Software Maintenance,"Corporate Services - Digital, Data & Technology",Entrust Ltd,437227,10200.95,Mf Devolved Admin-it Software Licences And Software Maintenance,K2K 3G5,VENDOR
"Department for Business, Energy and Industrial Strategy","Department for Business, Energy and Industrial Strategy",28/04/2022,It Software Licences And Software Maintenance,"Corporate Services - Digital, Data & Technology",Boxxe Ltd,437273,71940.00,Mf Devolved Admin-it Software Licences And Software Maintenance,YO31 7RE,VENDOR
"Department for Business, Energy and Industrial Strategy","Department for Business, Energy and Industrial Strategy",01/04/2022,It Hosting Services,"Corporate Services - Digital, Data & Technology",Amazon Web Services Inc,437838,1333.83,Mf Devolved Admin-it Hosting Services,98109-5210,VENDOR
"Department for Business, Energy and Industrial Strategy","Department for Business, Energy and Industrial Strategy",28/04/2022,It Software Licences And Software Maintenance,"Corporate Services - Digital, Data & Technology",Boxxe Ltd,437893,1462.80,Mf Devolved Admin-it Software Licences And Software Maintenance,YO31 7RE,VENDOR
"Department for Business, Energy and Industrial Strategy","Department for Business, Energy and Industrial Strategy",01/04/2022,It Software Licences And Software Maintenance,"Corporate Services - Digital, Data & Technology",Boxxe Ltd,437899,436812.96,Mf Devolved Admin-it Software Licences And Software Maintenance,YO31 7RE,VENDOR
"Department for Business, Energy and Industrial Strategy","Department for Business, Energy and Industrial Strategy",01/04/2022,It Software Licences And Software Maintenance,"Corporate Services - Digital, Data & Technology",Boxxe Ltd,437908,5022.72,Mf Devolved Admin-it Software Licences And Software Maintenance,YO31 7RE,VENDOR
"Department for Business, Energy and Industrial Strategy","Department for Business, Energy and Industrial Strategy",01/04/2022,Telecoms Equipment,"Corporate Services - Digital, Data & Technology",Connevans Ltd,438110,1777.01,Mf Devolved Admin-telecoms Equipment,RH1 3EB,GRANT
"Department for Business, Energy and Industrial Strategy","Department for Business, Energy and Industrial Strategy",04/04/2022,Central Telecommunications Services,"Corporate Services - Digital, Data & Technology",Telefonica Uk Ltd,438302,118.80,Mf Devolved Admin-central Telecommunications Services,SL1 4DX,VENDOR
"Department for Business, Energy and Industrial Strategy","Department for Business, Energy and Industrial Strategy",04/04/2022,Central Telecommunications Services,"Corporate Services - Digital, Data & Technology",Telefonica Uk Ltd,438303,119.06,Mf Devolved Admin-central Telecommunications Services,SL1 4DX,VENDOR
"Department for Business, Energy and Industrial Strategy","Department for Business, Energy and Industrial Strategy",04/04/2022,Central Telecommunications Services,"Corporate Services - Digital, Data & Technology",Telefonica Uk Ltd,438305,3190.50,Mf Devolved Admin-central Telecommunications Services,SL1 4DX,VENDOR
"Department for Business, Energy and Industrial Strategy","Department for Business, Energy and Industrial Strategy",07/04/2022,Other It Consultancy,"Corporate Services - Digital, Data & Technology",Triad Group Plc,438724,85356.75,Mf Devolved Admin-other It Consultancy,GU7 1XE,VENDOR
"Department for Business, Energy and Industrial Strategy","Department for Business, Energy and Industrial Strategy",12/04/2022,It Hosting Services,"Corporate Services - Digital, Data & Technology",Fivium Ltd,439062,39453.51,Mf Devolved Admin-it Hosting Services,WC2N 6AH,VENDOR
"Department for Business, Energy and Industrial Strategy","Department for Business, Energy and Industrial Strategy",07/04/2022,Central Telecommunications Services,"Corporate Services - Digital, Data & Technology",Telefonica Uk Ltd,439149,48529.51,Mf Devolved Admin-central Telecommunications Services,SL1 4DX,VENDOR
"Department for Business, Energy and Industrial Strategy","Department for Business, Energy and Industrial Strategy",19/04/2022,Guarding And Security Services,"Corporate Services - Digital, Data & Technology",E2e-assure Ltd,439166,17324.75,Mf Devolved Admin-guarding And Security Services,OX28 6HD,VENDOR
"Department for Business, Energy and Industrial Strategy","Department for Business, Energy and Industrial Strategy",07/04/2022,Central Telecommunications Services,"Corporate Services - Digital, Data & Technology",Telefonica Uk Ltd,439182,-48529.51,Mf Devolved Admin-central Telecommunications Services,SL1 4DX,VENDOR
"Department for Business, Energy and Industrial Strategy","Department for Business, Energy and Industrial Strategy",11/04/2022,It Services,"Corporate Services - Digital, Data & Technology",Visionist Ltd,439194,71106.29,Mf Devolved Admin-it Services,BH24 3FG,VENDOR
"Department for Business, Energy and Industrial Strategy","Department for Business, Energy and Industrial Strategy",11/04/2022,It Services,"Corporate Services - Digital, Data & Technology",Visionist Ltd,439195,19706.03,Mf Devolved Admin-it Services,BH24 3FG,VENDOR
"Department for Business, Energy and Industrial Strategy","Department for Business, Energy and Industrial Strategy",08/04/2022,Outsourced Technical Support,"Corporate Services - Digital, Data & Technology",Visionist Ltd,439387,331373.00,Mf Devolved Admin-outsourced Technical Support,BH24 3FG,VENDOR
"Department for Business, Energy and Industrial Strategy","Department for Business, Energy and Industrial Strategy",08/04/2022,Central Telecommunications Services,"Corporate Services - Digital, Data & Technology",Visionist Ltd,439388,109436.00,Mf Devolved Admin-central Telecommunications Services,BH24 3FG,VENDOR
"Department for Business, Energy and Industrial Strategy","Department for Business, Energy and Industrial Strategy",08/04/2022,Standard Desktop Plus Services,"Corporate Services - Digital, Data & Technology",Visionist Ltd,439389,276243.00,Mf Devolved Admin-standard Desktop Plus Services,BH24 3FG,VENDOR
"Department for Business, Energy and Industrial Strategy","Department for Business, Energy and Industrial Strategy",19/04/2022,Purchase Of Intangible Software,"Corporate Services - Digital, Data & Technology",Fdm Group Ltd,439426,1680.00,Mf Devolved Admin-purchase Of Intangible Software,SE1 2QG,VENDOR
"Department for Business, Energy and Industrial Strategy","Department for Business, Energy and Industrial Strategy",19/04/2022,Purchase Of Intangible Software,"Corporate Services - Digital, Data & Technology",Fdm Group Ltd,439430,1560.00,Mf Devolved Admin-purchase Of Intangible Software,SE1 2QG,VENDOR
"Department for Business, Energy and Industrial Strategy","Department for Business, Energy and Industrial Strategy",19/04/2022,Purchase Of Intangible Software,"Corporate Services - Digital, Data & Technology",Fdm Group Ltd,439432,1560.00,Mf Devolved Admin-purchase Of Intangible Software,SE1 2QG,VENDOR
"Department for Business, Energy and Industrial Strategy","Department for Business, Energy and Industrial Strategy",28/04/2022,It Software Licences And Software Maintenance,"Corporate Services - Digital, Data & Technology",Boxxe Ltd,439627,57552.00,Mf Devolved Admin-it Software Licences And Software Maintenance,YO31 7RE,VENDOR
"Department for Business, Energy and Industrial Strategy","Department for Business, Energy and Industrial Strategy",12/04/2022,Application Support Service,"Corporate Services - Digital, Data & Technology",Cgi It Uk Ltd,439760,43648.03,Mf Devolved Admin-application Support Service,EC3M 3BY,VENDOR
"Department for Business, Energy and Industrial Strategy","Department for Business, Energy and Industrial Strategy",12/04/2022,Application Support Service,"Corporate Services - Digital, Data & Technology",Cgi It Uk Ltd,439761,12735.00,Mf Devolved Admin-application Support Service,EC3M 3BY,VENDOR
"Department for Business, Energy and Industrial Strategy","Department for Business, Energy and Industrial Strategy",13/04/2022,Application Support Service,"Corporate Services - Digital, Data & Technology",Inform Ltd T/A The Inform Team,440053,11730.00,Mf Devolved Admin-application Support Service,SE11 5SW,VENDOR
"Department for Business, Energy and Industrial Strategy","Department for Business, Energy and Industrial Strategy",19/04/2022,Mobile Phones,"Corporate Services - Digital, Data & Technology",Bechtle Direct Ltd,440066,128302.08,Mf Devolved Admin-mobile Phones,SN14 0GF,VENDOR
"Department for Business, Energy and Industrial Strategy","Department for Business, Energy and Industrial Strategy",19/04/2022,Mobile Phones,"Corporate Services - Digital, Data & Technology",Bechtle Direct Ltd,440288,2530.56,Mf Devolved Admin-mobile Phones,SN14 0GF,VENDOR
"Department for Business, Energy and Industrial Strategy","Department for Business, Energy and Industrial Strategy",14/04/2022,It Infrastructure Support,"Corporate Services - Digital, Data & Technology",North Sea Transition Authority,440340,20347.64,Mf Devolved Admin-it Infrastructure Support,WC1B 3HF,WGA ONLY
"Department for Business, Energy and Industrial Strategy","Department for Business, Energy and Industrial Strategy",14/04/2022,It Infrastructure Support,"Corporate Services - Digital, Data & Technology",North Sea Transition Authority,440342,-47.78,Mf Devolved Admin-it Infrastructure Support,WC1B 3HF,WGA ONLY
"Department for Business, Energy and Industrial Strategy","Department for Business, Energy and Industrial Strategy",22/04/2022,It Software Licences And Software Maintenance,"Corporate Services - Digital, Data & Technology",Boxxe Ltd,440452,540.00,Mf Devolved Admin-it Software Licences And Software Maintenance,YO31 7RE,VENDOR
"Department for Business, Energy and Industrial Strategy","Department for Business, Energy and Industrial Strategy",21/04/2022,It Software Licences And Software Maintenance,"Corporate Services - Digital, Data & Technology",Egress Software Technologies Ltd,440633,28800.00,Mf Devolved Admin-it Software Licences And Software Maintenance,EC1Y 8AF,VENDOR
"Department for Business, Energy and Industrial Strategy","Department for Business, Energy and Industrial Strategy",19/04/2022,It Services,"Corporate Services - Digital, Data & Technology",Visionist Ltd,440687,170462.93,Mf Devolved Admin-it Services,BH24 3FG,VENDOR
"Department for Business, Energy and Industrial Strategy","Department for Business, Energy and Industrial Strategy",25/04/2022,It Services,"Corporate Services - Digital, Data & Technology",Visionist Ltd,440690,18813.67,Mf Devolved Admin-it Services,BH24 3FG,VENDOR
"Department for Business, Energy and Industrial Strategy","Department for Business, Energy and Industrial Strategy",22/04/2022,Purchase Of Intangible Software,"Corporate Services - Digital, Data & Technology",Fdm Group Ltd,440798,2880.00,Mf Devolved Admin-purchase Of Intangible Software,SE1 2QG,VENDOR
"Department for Business, Energy and Industrial Strategy","Department for Business, Energy and Industrial Strategy",26/04/2022,It Software Licences And Software Maintenance,"Corporate Services - Digital, Data & Technology",Boxxe Ltd,440899,27117.00,Mf Devolved Admin-it Software Licences And Software Maintenance,YO31 7RE,VENDOR
"Department for Business, Energy and Industrial Strategy","Department for Business, Energy and Industrial Strategy",27/04/2022,It Software Licences And Software Maintenance,"Corporate Services - Digital, Data & Technology",Boxxe Ltd,441536,39328.40,Mf Devolved Admin-it Software Licences And Software Maintenance,YO31 7RE,VENDOR
"Department for Business, Energy and Industrial Strategy","Department for Business, Energy and Industrial Strategy",27/04/2022,It Hosting Services,"Corporate Services - Digital, Data & Technology",Amazon Web Services Inc,442053,1452.95,Mf Devolved Admin-it Hosting Services,98109-5210,VENDOR
"Department for Business, Energy and Industrial Strategy","Department for Business, Energy and Industrial Strategy",28/04/2022,Application Support Service,"Corporate Services - Digital, Data & Technology",Cgi It Uk Ltd,442263,12735.00,Mf Devolved Admin-application Support Service,EC3M 3BY,VENDOR
"Department for Business, Energy and Industrial Strategy","Department for Business, Energy and Industrial Strategy",28/04/2022,Application Support Service,"Corporate Services - Digital, Data & Technology",Cgi It Uk Ltd,442264,50899.93,Mf Devolved Admin-application Support Service,EC3M 3BY,VENDOR
"Department for Business, Energy and Industrial Strategy","Department for Business, Energy and Industrial Strategy",04/04/2022,Clearing Account   - Cost - Computer Equipment,"Corporate Services - Digital, Data & Technology",Dell Corporation Ltd,429509,48635.40,Digital Infrastructure And Maintenanc-clearing Account   - Cost - Computer Equipment,RG12 1LF,VENDOR
"Department for Business, Energy and Industrial Strategy","Department for Business, Energy and Industrial Strategy",04/04/2022,Clearing Account   - Cost - Computer Equipment,"Corporate Services - Digital, Data & Technology",Dell Corporation Ltd,429519,48635.40,Digital Infrastructure And Maintenanc-clearing Account   - Cost - Computer Equipment,RG12 1LF,VENDOR
"Department for Business, Energy and Industrial Strategy","Department for Business, Energy and Industrial Strategy",04/04/2022,Clearing Account   - Cost - Computer Equipment,"Corporate Services - Digital, Data & Technology",Dell Corporation Ltd,429521,48635.40,Digital Infrastructure And Maintenanc-clearing Account   - Cost - Computer Equipment,RG12 1LF,VENDOR
"Department for Business, Energy and Industrial Strategy","Department for Business, Energy and Industrial Strategy",04/04/2022,Clearing Account   - Cost - Computer Equipment,"Corporate Services - Digital, Data & Technology",Dell Corporation Ltd,429522,48635.40,Digital Infrastructure And Maintenanc-clearing Account   - Cost - Computer Equipment,RG12 1LF,VENDOR
"Department for Business, Energy and Industrial Strategy","Department for Business, Energy and Industrial Strategy",04/04/2022,Clearing Account   - Cost - Computer Equipment,"Corporate Services - Digital, Data & Technology",Dell Corporation Ltd,429530,48635.40,Digital Infrastructure And Maintenanc-clearing Account   - Cost - Computer Equipment,RG12 1LF,VENDOR
"Department for Business, Energy and Industrial Strategy","Department for Business, Energy and Industrial Strategy",04/04/2022,Clearing Account   - Cost - Computer Equipment,"Corporate Services - Digital, Data & Technology",Dell Corporation Ltd,429533,48635.40,Digital Infrastructure And Maintenanc-clearing Account   - Cost - Computer Equipment,RG12 1LF,VENDOR
"Department for Business, Energy and Industrial Strategy","Department for Business, Energy and Industrial Strategy",04/04/2022,Clearing Account   - Cost - Computer Equipment,"Corporate Services - Digital, Data & Technology",Dell Corporation Ltd,429534,48635.40,Digital Infrastructure And Maintenanc-clearing Account   - Cost - Computer Equipment,RG12 1LF,VENDOR
"Department for Business, Energy and Industrial Strategy","Department for Business, Energy and Industrial Strategy",04/04/2022,Clearing Account   - Cost - Computer Equipment,"Corporate Services - Digital, Data & Technology",Dell Corporation Ltd,429538,48635.40,Digital Infrastructure And Maintenanc-clearing Account   - Cost - Computer Equipment,RG12 1LF,VENDOR
"Department for Business, Energy and Industrial Strategy","Department for Business, Energy and Industrial Strategy",04/04/2022,Clearing Account   - Cost - Computer Equipment,"Corporate Services - Digital, Data & Technology",Dell Corporation Ltd,429539,48635.40,Digital Infrastructure And Maintenanc-clearing Account   - Cost - Computer Equipment,RG12 1LF,VENDOR
"Department for Business, Energy and Industrial Strategy","Department for Business, Energy and Industrial Strategy",04/04/2022,Clearing Account   - Cost - Computer Equipment,"Corporate Services - Digital, Data & Technology",Dell Corporation Ltd,429542,48635.40,Digital Infrastructure And Maintenanc-clearing Account   - Cost - Computer Equipment,RG12 1LF,VENDOR
"Department for Business, Energy and Industrial Strategy","Department for Business, Energy and Industrial Strategy",04/04/2022,Clearing Account   - Cost - Computer Equipment,"Corporate Services - Digital, Data & Technology",Dell Corporation Ltd,429544,48635.40,Digital Infrastructure And Maintenanc-clearing Account   - Cost - Computer Equipment,RG12 1LF,VENDOR
"Department for Business, Energy and Industrial Strategy","Department for Business, Energy and Industrial Strategy",04/04/2022,Clearing Account   - Cost - Computer Equipment,"Corporate Services - Digital, Data & Technology",Dell Corporation Ltd,429545,48635.40,Digital Infrastructure And Maintenanc-clearing Account   - Cost - Computer Equipment,RG12 1LF,VENDOR
"Department for Business, Energy and Industrial Strategy","Department for Business, Energy and Industrial Strategy",04/04/2022,Clearing Account   - Cost - Computer Equipment,"Corporate Services - Digital, Data & Technology",Dell Corporation Ltd,429546,48635.40,Digital Infrastructure And Maintenanc-clearing Account   - Cost - Computer Equipment,RG12 1LF,VENDOR
"Department for Business, Energy and Industrial Strategy","Department for Business, Energy and Industrial Strategy",04/04/2022,Clearing Account   - Cost - Computer Equipment,"Corporate Services - Digital, Data & Technology",Dell Corporation Ltd,429548,48635.40,Digital Infrastructure And Maintenanc-clearing Account   - Cost - Computer Equipment,RG12 1LF,VENDOR
"Department for Business, Energy and Industrial Strategy","Department for Business, Energy and Industrial Strategy",04/04/2022,Clearing Account   - Cost - Computer Equipment,"Corporate Services - Digital, Data & Technology",Dell Corporation Ltd,429551,48635.40,Digital Infrastructure And Maintenanc-clearing Account   - Cost - Computer Equipment,RG12 1LF,VENDOR
"Department for Business, Energy and Industrial Strategy","Department for Business, Energy and Industrial Strategy",04/04/2022,Clearing Account   - Cost - Computer Equipment,"Corporate Services - Digital, Data & Technology",Dell Corporation Ltd,429553,48635.40,Digital Infrastructure And Maintenanc-clearing Account   - Cost - Computer Equipment,RG12 1LF,VENDOR
"Department for Business, Energy and Industrial Strategy","Department for Business, Energy and Industrial Strategy",04/04/2022,Clearing Account   - Cost - Computer Equipment,"Corporate Services - Digital, Data & Technology",Dell Corporation Ltd,429554,48635.40,Digital Infrastructure And Maintenanc-clearing Account   - Cost - Computer Equipment,RG12 1LF,VENDOR
"Department for Business, Energy and Industrial Strategy","Department for Business, Energy and Industrial Strategy",04/04/2022,Clearing Account   - Cost - Computer Equipment,"Corporate Services - Digital, Data & Technology",Dell Corporation Ltd,429559,48635.40,Digital Infrastructure And Maintenanc-clearing Account   - Cost - Computer Equipment,RG12 1LF,VENDOR
"Department for Business, Energy and Industrial Strategy","Department for Business, Energy and Industrial Strategy",04/04/2022,Clearing Account   - Cost - Computer Equipment,"Corporate Services - Digital, Data & Technology",Dell Corporation Ltd,429562,48635.40,Digital Infrastructure And Maintenanc-clearing Account   - Cost - Computer Equipment,RG12 1LF,VENDOR
"Department for Business, Energy and Industrial Strategy","Department for Business, Energy and Industrial Strategy",04/04/2022,Clearing Account   - Cost - Computer Equipment,"Corporate Services - Digital, Data & Technology",Dell Corporation Ltd,429563,48635.40,Digital Infrastructure And Maintenanc-clearing Account   - Cost - Computer Equipment,RG12 1LF,VENDOR
"Department for Business, Energy and Industrial Strategy","Department for Business, Energy and Industrial Strategy",04/04/2022,Clearing Account   - Cost - Computer Equipment,"Corporate Services - Digital, Data & Technology",Dell Corporation Ltd,429567,48635.40,Digital Infrastructure And Maintenanc-clearing Account   - Cost - Computer Equipment,RG12 1LF,VENDOR
"Department for Business, Energy and Industrial Strategy","Department for Business, Energy and Industrial Strategy",04/04/2022,Clearing Account   - Cost - Computer Equipment,"Corporate Services - Digital, Data & Technology",Dell Corporation Ltd,429569,48635.40,Digital Infrastructure And Maintenanc-clearing Account   - Cost - Computer Equipment,RG12 1LF,VENDOR
"Department for Business, Energy and Industrial Strategy","Department for Business, Energy and Industrial Strategy",04/04/2022,Clearing Account   - Cost - Computer Equipment,"Corporate Services - Digital, Data & Technology",Dell Corporation Ltd,429572,48635.40,Digital Infrastructure And Maintenanc-clearing Account   - Cost - Computer Equipment,RG12 1LF,VENDOR
"Department for Business, Energy and Industrial Strategy","Department for Business, Energy and Industrial Strategy",04/04/2022,Clearing Account   - Cost - Computer Equipment,"Corporate Services - Digital, Data & Technology",Dell Corporation Ltd,429573,48635.40,Digital Infrastructure And Maintenanc-clearing Account   - Cost - Computer Equipment,RG12 1LF,VENDOR
"Department for Business, Energy and Industrial Strategy","Department for Business, Energy and Industrial Strategy",04/04/2022,Clearing Account   - Cost - Computer Equipment,"Corporate Services - Digital, Data & Technology",Dell Corporation Ltd,429574,48635.40,Digital Infrastructure And Maintenanc-clearing Account   - Cost - Computer Equipment,RG12 1LF,VENDOR
"Department for Business, Energy and Industrial Strategy","Department for Business, Energy and Industrial Strategy",04/04/2022,Clearing Account   - Cost - Computer Equipment,"Corporate Services - Digital, Data & Technology",Dell Corporation Ltd,429575,48635.40,Digital Infrastructure And Maintenanc-clearing Account   - Cost - Computer Equipment,RG12 1LF,VENDOR
"Department for Business, Energy and Industrial Strategy","Department for Business, Energy and Industrial Strategy",04/04/2022,Clearing Account   - Cost - Computer Equipment,"Corporate Services - Digital, Data & Technology",Dell Corporation Ltd,429577,48635.40,Digital Infrastructure And Maintenanc-clearing Account   - Cost - Computer Equipment,RG12 1LF,VENDOR
"Department for Business, Energy and Industrial Strategy","Department for Business, Energy and Industrial Strategy",04/04/2022,Clearing Account   - Cost - Computer Equipment,"Corporate Services - Digital, Data & Technology",Dell Corporation Ltd,429578,48635.40,Digital Infrastructure And Maintenanc-clearing Account   - Cost - Computer Equipment,RG12 1LF,VENDOR
"Department for Business, Energy and Industrial Strategy","Department for Business, Energy and Industrial Strategy",04/04/2022,Clearing Account   - Cost - Computer Equipment,"Corporate Services - Digital, Data & Technology",Dell Corporation Ltd,429580,48635.40,Digital Infrastructure And Maintenanc-clearing Account   - Cost - Computer Equipment,RG12 1LF,VENDOR
"Department for Business, Energy and Industrial Strategy","Department for Business, Energy and Industrial Strategy",04/04/2022,Clearing Account   - Cost - Computer Equipment,"Corporate Services - Digital, Data & Technology",Dell Corporation Ltd,429582,48635.40,Digital Infrastructure And Maintenanc-clearing Account   - Cost - Computer Equipment,RG12 1LF,VENDOR
"Department for Business, Energy and Industrial Strategy","Department for Business, Energy and Industrial Strategy",04/04/2022,Clearing Account   - Cost - Computer Equipment,"Corporate Services - Digital, Data & Technology",Dell Corporation Ltd,429583,48635.40,Digital Infrastructure And Maintenanc-clearing Account   - Cost - Computer Equipment,RG12 1LF,VENDOR
"Department for Business, Energy and Industrial Strategy","Department for Business, Energy and Industrial Strategy",04/04/2022,Clearing Account   - Cost - Computer Equipment,"Corporate Services - Digital, Data & Technology",Dell Corporation Ltd,429584,48635.40,Digital Infrastructure And Maintenanc-clearing Account   - Cost - Computer Equipment,RG12 1LF,VENDOR
"Department for Business, Energy and Industrial Strategy","Department for Business, Energy and Industrial Strategy",04/04/2022,Clearing Account   - Cost - Computer Equipment,"Corporate Services - Digital, Data & Technology",Dell Corporation Ltd,429586,48635.40,Digital Infrastructure And Maintenanc-clearing Account   - Cost - Computer Equipment,RG12 1LF,VENDOR
"Department for Business, Energy and Industrial Strategy","Department for Business, Energy and Industrial Strategy",04/04/2022,Clearing Account   - Cost - Computer Equipment,"Corporate Services - Digital, Data & Technology",Dell Corporation Ltd,429765,48635.40,Digital Infrastructure And Maintenanc-clearing Account   - Cost - Computer Equipment,RG12 1LF,VENDOR
"Department for Business, Energy and Industrial Strategy","Department for Business, Energy and Industrial Strategy",04/04/2022,Clearing Account   - Cost - Computer Equipment,"Corporate Services - Digital, Data & Technology",Dell Corporation Ltd,429766,48635.40,Digital Infrastructure And Maintenanc-clearing Account   - Cost - Computer Equipment,RG12 1LF,VENDOR
"Department for Business, Energy and Industrial Strategy","Department for Business, Energy and Industrial Strategy",04/04/2022,Clearing Account   - Cost - Computer Equipment,"Corporate Services - Digital, Data & Technology",Dell Corporation Ltd,429767,48635.40,Digital Infrastructure And Maintenanc-clearing Account   - Cost - Computer Equipment,RG12 1LF,VENDOR
"Department for Business, Energy and Industrial Strategy","Department for Business, Energy and Industrial Strategy",04/04/2022,Clearing Account   - Cost - Computer Equipment,"Corporate Services - Digital, Data & Technology",Dell Corporation Ltd,429768,48635.40,Digital Infrastructure And Maintenanc-clearing Account   - Cost - Computer Equipment,RG12 1LF,VENDOR
"Department for Business, Energy and Industrial Strategy","Department for Business, Energy and Industrial Strategy",04/04/2022,Clearing Account   - Cost - Computer Equipment,"Corporate Services - Digital, Data & Technology",Dell Corporation Ltd,429769,48635.40,Digital Infrastructure And Maintenanc-clearing Account   - Cost - Computer Equipment,RG12 1LF,VENDOR
"Department for Business, Energy and Industrial Strategy","Department for Business, Energy and Industrial Strategy",04/04/2022,Clearing Account   - Cost - Computer Equipment,"Corporate Services - Digital, Data & Technology",Dell Corporation Ltd,429770,48635.40,Digital Infrastructure And Maintenanc-clearing Account   - Cost - Computer Equipment,RG12 1LF,VENDOR
"Department for Business, Energy and Industrial Strategy","Department for Business, Energy and Industrial Strategy",04/04/2022,Clearing Account   - Cost - Computer Equipment,"Corporate Services - Digital, Data & Technology",Dell Corporation Ltd,429898,29181.24,Digital Infrastructure And Maintenanc-clearing Account   - Cost - Computer Equipment,RG12 1LF,VENDOR
"Department for Business, Energy and Industrial Strategy","Department for Business, Energy and Industrial Strategy",11/04/2022,Clearing Account   - Cost - Computer Equipment,"Corporate Services - Digital, Data & Technology",Dell Corporation Ltd,439445,5859.84,Digital Infrastructure And Maintenanc-clearing Account   - Cost - Computer Equipment,RG12 1RD,VENDOR
"Department for Business, Energy and Industrial Strategy","Department for Business, Energy and Industrial Strategy",01/04/2022,Other Travel,Corporate Services - Finance Directorate,"Personal Expense, Name Withheld",437931,6.79,Mf Devolved Admin-other Travel,,EMPLOYEE
"Department for Business, Energy and Industrial Strategy","Department for Business, Energy and Industrial Strategy",01/04/2022,Other Travel,Corporate Services - Finance Directorate,"Personal Expense, Name Withheld",437931,11.89,Mf Devolved Admin-other Travel,,EMPLOYEE
"Department for Business, Energy and Industrial Strategy","Department for Business, Energy and Industrial Strategy",14/04/2022,Other Admin Expenditure,Corporate Services - Finance Directorate,Thurrock Borough Council,440284,-458867.03,Natis Investigation And Enforcement Service-other Admin Expenditure,RM17 6LT,VENDOR
"Department for Business, Energy and Industrial Strategy","Department for Business, Energy and Industrial Strategy",19/04/2022,Other Admin Expenditure,Corporate Services - Finance Directorate,Thurrock Borough Council,440285,-388424.89,Natis Investigation And Enforcement Service-other Admin Expenditure,RM17 6LT,VENDOR
"Department for Business, Energy and Industrial Strategy","Department for Business, Energy and Industrial Strategy",14/04/2022,Other Admin Expenditure,Corporate Services - Finance Directorate,Thurrock Borough Council,440440,323687.41,Natis Investigation And Enforcement Service-other Admin Expenditure,RM17 6LT,VENDOR
"Department for Business, Energy and Industrial Strategy","Department for Business, Energy and Industrial Strategy",14/04/2022,Other Admin Expenditure,Corporate Services - Finance Directorate,Thurrock Borough Council,440441,458867.03,Natis Investigation And Enforcement Service-other Admin Expenditure,RM17 6LT,VENDOR
"Department for Business, Energy and Industrial Strategy","Department for Business, Energy and Industrial Strategy",21/04/2022,Other It Consultancy,"Corporate Services - Digital, Data & Technology",Foundry4 Consulting Ltd,435789,11200.00,Mf Devolved Admin-other It Consultancy,WC2R 0EX,VENDOR
"Department for Business, Energy and Industrial Strategy","Department for Business, Energy and Industrial Strategy",22/04/2022,Ppm Consultancy,"Corporate Services - Digital, Data & Technology",Triad Group Plc,438725,73602.00,Mf Devolved Admin-ppm Consultancy,GU7 1XE,VENDOR
"Department for Business, Energy and Industrial Strategy","Department for Business, Energy and Industrial Strategy",12/04/2022,Other It Consultancy,"Corporate Services - Digital, Data & Technology",Aiimi Ltd,439436,28833.75,Mf Devolved Admin-other It Consultancy,MK9 1FH,VENDOR
"Department for Business, Energy and Industrial Strategy","Department for Business, Energy and Industrial Strategy",19/04/2022,Technical Advice / Services & Support,"Corporate Services - Digital, Data & Technology",Cognitive Group Ltd,439499,18170.00,Mf Devolved Admin-technical Advice / Services & Support,EC3R 7BB,VENDOR
"Department for Business, Energy and Industrial Strategy","Department for Business, Energy and Industrial Strategy",08/04/2022,Technical Advice / Services & Support,"Corporate Services - Digital, Data & Technology",Albany Beck Consultancy Services Ltd,439508,11800.00,Mf Devolved Admin-technical Advice / Services & Support,HP4 2DF,VENDOR
"Department for Business, Energy and Industrial Strategy","Department for Business, Energy and Industrial Strategy",12/04/2022,Application Support Service,"Corporate Services - Digital, Data & Technology",Ccl Forensics Ltd,439941,7584.00,Mf Devolved Admin-application Support Service,CV37 9NW,VENDOR
"Department for Business, Energy and Industrial Strategy","Department for Business, Energy and Industrial Strategy",13/04/2022,Technical Advice / Services & Support,"Corporate Services - Digital, Data & Technology",Veracity Osi Uk Ltd,440070,38070.00,Mf Devolved Admin-technical Advice / Services & Support,EC3R 8LJ,VENDOR
"Department for Business, Energy and Industrial Strategy","Department for Business, Energy and Industrial Strategy",21/04/2022,Technical Advice / Services & Support,"Corporate Services - Digital, Data & Technology",Broadlight Ltd,440147,14700.00,Mf Devolved Admin-technical Advice / Services & Support,EC4N 6HL,VENDOR
"Department for Business, Energy and Industrial Strategy","Department for Business, Energy and Industrial Strategy",21/04/2022,Technical Advice / Services & Support,"Corporate Services - Digital, Data & Technology",Broadlight Ltd,440168,62175.00,Mf Devolved Admin-technical Advice / Services & Support,EC4N 6HL,VENDOR
"Department for Business, Energy and Industrial Strategy","Department for Business, Energy and Industrial Strategy",21/04/2022,Technical Advice / Services & Support,"Corporate Services - Digital, Data & Technology",Broadlight Ltd,440169,51750.00,Mf Devolved Admin-technical Advice / Services & Support,EC4N 6HL,VENDOR
"Department for Business, Energy and Industrial Strategy","Department for Business, Energy and Industrial Strategy",21/04/2022,Technical Advice / Services & Support,"Corporate Services - Digital, Data & Technology",Broadlight Ltd,440170,6750.00,Mf Devolved Admin-technical Advice / Services & Support,EC4N 6HL,VENDOR
"Department for Business, Energy and Industrial Strategy","Department for Business, Energy and Industrial Strategy",21/04/2022,Technical Advice / Services & Support,"Corporate Services - Digital, Data & Technology",Broadlight Ltd,440171,154850.00,Mf Devolved Admin-technical Advice / Services & Support,EC4N 6HL,VENDOR
"Department for Business, Energy and Industrial Strategy","Department for Business, Energy and Industrial Strategy",21/04/2022,Technical Advice / Services & Support,"Corporate Services - Digital, Data & Technology",Broadlight Ltd,440173,17250.00,Mf Devolved Admin-technical Advice / Services & Support,EC4N 6HL,VENDOR
"Department for Business, Energy and Industrial Strategy","Department for Business, Energy and Industrial Strategy",14/04/2022,Technical Advice / Services & Support,"Corporate Services - Digital, Data & Technology",Albany Beck Consultancy Services Ltd,440495,5900.00,Mf Devolved Admin-technical Advice / Services & Support,EC4R 0AA,VENDOR
"Department for Business, Energy and Industrial Strategy","Department for Business, Energy and Industrial Strategy",14/04/2022,Consultancy Expenditure,"Corporate Services - Digital, Data & Technology",Cabinet Office,440639,14784.00,Mf Devolved Admin-consultancy Expenditure,NP10 8FZ,WGA ONLY
"Department for Business, Energy and Industrial Strategy","Department for Business, Energy and Industrial Strategy",25/04/2022,Technical Advice / Services & Support,"Corporate Services - Digital, Data & Technology",Bjss Ltd,440667,16500.00,Mf Devolved Admin-technical Advice / Services & Support,LS1 4HR,VENDOR
"Department for Business, Energy and Industrial Strategy","Department for Business, Energy and Industrial Strategy",25/04/2022,Technical Advice / Services & Support,"Corporate Services - Digital, Data & Technology",Bjss Ltd,440879,19894.00,Mf Devolved Admin-technical Advice / Services & Support,LS1 4HR,VENDOR
"Department for Business, Energy and Industrial Strategy","Department for Business, Energy and Industrial Strategy",28/04/2022,Technical Advice / Services & Support,"Corporate Services - Digital, Data & Technology",Tactivos Inc T/A Mural,441351,829.44,Mf Devolved Admin-technical Advice / Services & Support,94108,VENDOR
"Department for Business, Energy and Industrial Strategy","Department for Business, Energy and Industrial Strategy",25/04/2022,Technical Advice / Services & Support,"Corporate Services - Digital, Data & Technology",Broadlight Ltd,441535,7500.00,Mf Devolved Admin-technical Advice / Services & Support,CF10 1DX,VENDOR
"Department for Business, Energy and Industrial Strategy","Department for Business, Energy and Industrial Strategy",25/04/2022,Technical Advice / Services & Support,"Corporate Services - Digital, Data & Technology",Broadlight Ltd,441538,6750.00,Mf Devolved Admin-technical Advice / Services & Support,CF10 1DX,VENDOR
"Department for Business, Energy and Industrial Strategy","Department for Business, Energy and Industrial Strategy",25/04/2022,Other It Consultancy,"Corporate Services - Digital, Data & Technology",Broadlight Ltd,441539,17850.00,Mf Devolved Admin-other It Consultancy,CF10 1DX,VENDOR
"Department for Business, Energy and Industrial Strategy","Department for Business, Energy and Industrial Strategy",27/04/2022,Ppm Consultancy,"Corporate Services - Digital, Data & Technology",Veracity Osi Uk Ltd,442131,19435.00,Mf Devolved Admin-ppm Consultancy,EC3R 8LJ,VENDOR
"Department for Business, Energy and Industrial Strategy","Department for Business, Energy and Industrial Strategy",08/04/2022,Hire Of Interim Managers,"Corporate Services - Digital, Data & Technology",Alexander Mann Solutions Ltd,438967,1955.58,Mf Devolved Admin-hire Of Interim Managers,EC2N 3AQ,VENDOR
"Department for Business, Energy and Industrial Strategy","Department for Business, Energy and Industrial Strategy",07/04/2022,Stationery,"Corporate Services - Digital, Data & Technology","Personal Expense, Name Withheld",439202,65.99,Mf Devolved Admin-stationery,,EMPLOYEE
"Department for Business, Energy and Industrial Strategy","Department for Business, Energy and Industrial Strategy",07/04/2022,Stationery,"Corporate Services - Digital, Data & Technology","Personal Expense, Name Withheld",439202,182.40,Mf Devolved Admin-stationery,,EMPLOYEE
"Department for Business, Energy and Industrial Strategy","Department for Business, Energy and Industrial Strategy",12/04/2022,Training And Development Expenditure,"Corporate Services - Digital, Data & Technology","Personal Expense, Name Withheld",439863,456.00,Mf Devolved Admin-training And Development Expenditure,,EMPLOYEE
"Department for Business, Energy and Industrial Strategy","Department for Business, Energy and Industrial Strategy",19/04/2022,Hire Of Interim Managers,"Corporate Services - Digital, Data & Technology",Alexander Mann Solutions Ltd,440024,5475.64,Mf Devolved Admin-hire Of Interim Managers,EC2N 3AQ,VENDOR
"Department for Business, Energy and Industrial Strategy","Department for Business, Energy and Industrial Strategy",05/04/2022,Rail Travel Uk,Corporate Services - Human Resources,"Personal Expense, Name Withheld",438600,5.80,Mf Devolved Admin-rail Travel Uk,,EMPLOYEE
"Department for Business, Energy and Industrial Strategy","Department for Business, Energy and Industrial Strategy",05/04/2022,Office-related Expenditure,"Corporate Services - Digital, Data & Technology","Personal Expense, Name Withheld",438582,191.99,Mf Devolved Admin-office-related Expenditure,,EMPLOYEE
"Department for Business, Energy and Industrial Strategy","Department for Business, Energy and Industrial Strategy",05/04/2022,Office-related Expenditure,"Corporate Services - Digital, Data & Technology","Personal Expense, Name Withheld",438583,8.49,Mf Devolved Admin-office-related Expenditure,,EMPLOYEE
"Department for Business, Energy and Industrial Strategy","Department for Business, Energy and Industrial Strategy",05/04/2022,Office-related Expenditure,"Corporate Services - Digital, Data & Technology","Personal Expense, Name Withheld",438583,13.99,Mf Devolved Admin-office-related Expenditure,,EMPLOYEE
"Department for Business, Energy and Industrial Strategy","Department for Business, Energy and Industrial Strategy",06/04/2022,Office-related Expenditure,"Corporate Services - Digital, Data & Technology","Personal Expense, Name Withheld",438605,14.44,Mf Devolved Admin-office-related Expenditure,,EMPLOYEE
"Department for Business, Energy and Industrial Strategy","Department for Business, Energy and Industrial Strategy",06/04/2022,Office-related Expenditure,"Corporate Services - Digital, Data & Technology","Personal Expense, Name Withheld",438605,196.98,Mf Devolved Admin-office-related Expenditure,,EMPLOYEE
"Department for Business, Energy and Industrial Strategy","Department for Business, Energy and Industrial Strategy",05/04/2022,Office-related Expenditure,"Corporate Services - Digital, Data & Technology","Personal Expense, Name Withheld",438645,197.99,Mf Devolved Admin-office-related Expenditure,,EMPLOYEE
"Department for Business, Energy and Industrial Strategy","Department for Business, Energy and Industrial Strategy",05/04/2022,Office-related Expenditure,"Corporate Services - Digital, Data & Technology","Personal Expense, Name Withheld",438646,21.99,Mf Devolved Admin-office-related Expenditure,,EMPLOYEE
"Department for Business, Energy and Industrial Strategy","Department for Business, Energy and Industrial Strategy",05/04/2022,Office-related Expenditure,"Corporate Services - Digital, Data & Technology","Personal Expense, Name Withheld",438647,93.99,Mf Devolved Admin-office-related Expenditure,,EMPLOYEE
"Department for Business, Energy and Industrial Strategy","Department for Business, Energy and Industrial Strategy",19/04/2022,Recruitment Advice And Services,"Corporate Services - Digital, Data & Technology",Alexander Mann Solutions Ltd,438769,-8988.12,Mf Devolved Admin-recruitment Advice And Services,EC2N 3AQ,VENDOR
"Department for Business, Energy and Industrial Strategy","Department for Business, Energy and Industrial Strategy",19/04/2022,Recruitment Advice And Services,"Corporate Services - Digital, Data & Technology",Alexander Mann Solutions Ltd,439010,22470.30,Mf Devolved Admin-recruitment Advice And Services,EC2N 3AQ,VENDOR
"Department for Business, Energy and Industrial Strategy","Department for Business, Energy and Industrial Strategy",12/04/2022,Other It Consultancy,"Corporate Services - Digital, Data & Technology",Aiimi Ltd,439427,58212.00,Mf Devolved Admin-other It Consultancy,MK9 1FH,VENDOR
"Department for Business, Energy and Industrial Strategy","Department for Business, Energy and Industrial Strategy",12/04/2022,Other It Consultancy,"Corporate Services - Digital, Data & Technology",Aiimi Ltd,439434,1800.00,Mf Devolved Admin-other It Consultancy,MK9 1FH,VENDOR
"Department for Business, Energy and Industrial Strategy","Department for Business, Energy and Industrial Strategy",12/04/2022,Other It Consultancy,"Corporate Services - Digital, Data & Technology",Aiimi Ltd,439439,36000.00,Mf Devolved Admin-other It Consultancy,MK9 1FH,VENDOR
"Department for Business, Energy and Industrial Strategy","Department for Business, Energy and Industrial Strategy",12/04/2022,Other It Consultancy,"Corporate Services - Digital, Data & Technology",Aiimi Ltd,439441,2250.00,Mf Devolved Admin-other It Consultancy,MK9 1FH,VENDOR
"Department for Business, Energy and Industrial Strategy","Department for Business, Energy and Industrial Strategy",19/04/2022,Recruitment Advice And Services,"Corporate Services - Digital, Data & Technology",Alexander Mann Solutions Ltd,440119,4494.06,Mf Devolved Admin-recruitment Advice And Services,EC2N 3AQ,VENDOR
"Department for Business, Energy and Industrial Strategy","Department for Business, Energy and Industrial Strategy",21/04/2022,Office-related Expenditure,"Corporate Services - Digital, Data & Technology","Personal Expense, Name Withheld",441160,11.99,Mf Devolved Admin-office-related Expenditure,,EMPLOYEE
"Department for Business, Energy and Industrial Strategy","Department for Business, Energy and Industrial Strategy",21/04/2022,Office-related Expenditure,"Corporate Services - Digital, Data & Technology","Personal Expense, Name Withheld",441160,59.99,Mf Devolved Admin-office-related Expenditure,,EMPLOYEE
"Department for Business, Energy and Industrial Strategy","Department for Business, Energy and Industrial Strategy",21/04/2022,Office-related Expenditure,"Corporate Services - Digital, Data & Technology","Personal Expense, Name Withheld",441160,74.99,Mf Devolved Admin-office-related Expenditure,,EMPLOYEE
"Department for Business, Energy and Industrial Strategy","Department for Business, Energy and Industrial Strategy",21/04/2022,Office-related Expenditure,"Corporate Services - Digital, Data & Technology","Personal Expense, Name Withheld",441160,79.99,Mf Devolved Admin-office-related Expenditure,,EMPLOYEE
"Department for Business, Energy and Industrial Strategy","Department for Business, Energy and Industrial Strategy",21/04/2022,Office-related Expenditure,"Corporate Services - Digital, Data & Technology","Personal Expense, Name Withheld",441160,119.00,Mf Devolved Admin-office-related Expenditure,,EMPLOYEE
"Department for Business, Energy and Industrial Strategy","Department for Business, Energy and Industrial Strategy",26/04/2022,Recruitment Advice And Services,"Corporate Services - Digital, Data & Technology",Alexander Mann Solutions Ltd,441305,4494.06,Mf Devolved Admin-recruitment Advice And Services,EC2N 3AQ,VENDOR
"Department for Business, Energy and Industrial Strategy","Department for Business, Energy and Industrial Strategy",26/04/2022,Recruitment Advice And Services,"Corporate Services - Digital, Data & Technology",Alexander Mann Solutions Ltd,441790,4494.06,Mf Devolved Admin-recruitment Advice And Services,EC2N 3AQ,VENDOR
"Department for Business, Energy and Industrial Strategy","Department for Business, Energy and Industrial Strategy",26/04/2022,Taxi Services Uk,"Corporate Services - Digital, Data & Technology","Personal Expense, Name Withheld",441896,6.95,Mf Devolved Admin-taxi Services Uk,,EMPLOYEE
"Department for Business, Energy and Industrial Strategy","Department for Business, Energy and Industrial Strategy",26/04/2022,Taxi Services Uk,"Corporate Services - Digital, Data & Technology","Personal Expense, Name Withheld",441896,10.82,Mf Devolved Admin-taxi Services Uk,,EMPLOYEE
"Department for Business, Energy and Industrial Strategy","Department for Business, Energy and Industrial Strategy",05/04/2022,Other It Consultancy,"Corporate Services - Digital, Data & Technology",Triad Group Plc,438555,19889.10,Mf Devolved Admin-other It Consultancy,GU7 1XE,VENDOR
"Department for Business, Energy and Industrial Strategy","Department for Business, Energy and Industrial Strategy",05/04/2022,Other It Consultancy,"Corporate Services - Digital, Data & Technology",Triad Group Plc,438564,47406.50,Mf Devolved Admin-other It Consultancy,MK7 8LE,VENDOR
"Department for Business, Energy and Industrial Strategy","Department for Business, Energy and Industrial Strategy",05/04/2022,Subsistence Uk,"Corporate Services - Digital, Data & Technology","Personal Expense, Name Withheld",438578,5.00,Mf Devolved Admin-subsistence Uk,,EMPLOYEE
"Department for Business, Energy and Industrial Strategy","Department for Business, Energy and Industrial Strategy",05/04/2022,Subsistence Uk,"Corporate Services - Digital, Data & Technology","Personal Expense, Name Withheld",438578,5.00,Mf Devolved Admin-subsistence Uk,,EMPLOYEE
"Department for Business, Energy and Industrial Strategy","Department for Business, Energy and Industrial Strategy",05/04/2022,Other Travel,"Corporate Services - Digital, Data & Technology","Personal Expense, Name Withheld",438578,7.00,Mf Devolved Admin-other Travel,,EMPLOYEE
"Department for Business, Energy and Industrial Strategy","Department for Business, Energy and Industrial Strategy",05/04/2022,Other Travel,"Corporate Services - Digital, Data & Technology","Personal Expense, Name Withheld",438578,8.00,Mf Devolved Admin-other Travel,,EMPLOYEE
"Department for Business, Energy and Industrial Strategy","Department for Business, Energy and Industrial Strategy",05/04/2022,Other Travel,"Corporate Services - Digital, Data & Technology","Personal Expense, Name Withheld",438578,8.00,Mf Devolved Admin-other Travel,,EMPLOYEE
"Department for Business, Energy and Industrial Strategy","Department for Business, Energy and Industrial Strategy",05/04/2022,Subsistence Uk,"Corporate Services - Digital, Data & Technology","Personal Expense, Name Withheld",438578,12.00,Mf Devolved Admin-subsistence Uk,,EMPLOYEE
"Department for Business, Energy and Industrial Strategy","Department for Business, Energy and Industrial Strategy",05/04/2022,Subsistence Uk,"Corporate Services - Digital, Data & Technology","Personal Expense, Name Withheld",438578,12.00,Mf Devolved Admin-subsistence Uk,,EMPLOYEE
"Department for Business, Energy and Industrial Strategy","Department for Business, Energy and Industrial Strategy",05/04/2022,Mileage Allowance Uk,"Corporate Services - Digital, Data & Technology","Personal Expense, Name Withheld",438578,54.45,Mf Devolved Admin-mileage Allowance Uk,,EMPLOYEE
"Department for Business, Energy and Industrial Strategy","Department for Business, Energy and Industrial Strategy",05/04/2022,Mileage Allowance Uk,"Corporate Services - Digital, Data & Technology","Personal Expense, Name Withheld",438578,101.70,Mf Devolved Admin-mileage Allowance Uk,,EMPLOYEE
"Department for Business, Energy and Industrial Strategy","Department for Business, Energy and Industrial Strategy",05/04/2022,Mileage Allowance Uk,"Corporate Services - Digital, Data & Technology","Personal Expense, Name Withheld",438578,102.15,Mf Devolved Admin-mileage Allowance Uk,,EMPLOYEE
"Department for Business, Energy and Industrial Strategy","Department for Business, Energy and Industrial Strategy",26/04/2022,Hire Of Agency Staff,"Corporate Services - Digital, Data & Technology",Alexander Mann Solutions Ltd,438971,850.92,Mf Devolved Admin-hire Of Agency Staff,EC2N 3AQ,VENDOR
"Department for Business, Energy and Industrial Strategy","Department for Business, Energy and Industrial Strategy",21/04/2022,Other It Consultancy,"Corporate Services - Digital, Data & Technology",Intelogy Ltd,439504,5027.50,Mf Devolved Admin-other It Consultancy,TW16 7DY,VENDOR
"Department for Business, Energy and Industrial Strategy","Department for Business, Energy and Industrial Strategy",21/04/2022,Other It Consultancy,"Corporate Services - Digital, Data & Technology",Intelogy Ltd,440075,93.39,Mf Devolved Admin-other It Consultancy,TW16 7DY,VENDOR
"Department for Business, Energy and Industrial Strategy","Department for Business, Energy and Industrial Strategy",25/04/2022,Storage And Distribution,"Corporate Services - Digital, Data & Technology",Restore Plc,440486,8728.13,Mf Devolved Admin-storage And Distribution,RH1 5DY,VENDOR
"Department for Business, Energy and Industrial Strategy","Department for Business, Energy and Industrial Strategy",21/04/2022,International Subscriptions,"Corporate Services - Digital, Data & Technology",Relx (UK) Ltd,441096,6447.80,Mf Devolved Admin-international Subscriptions,SM2 5AS,VENDOR
"Department for Business, Energy and Industrial Strategy","Department for Business, Energy and Industrial Strategy",26/04/2022,Storage And Distribution,"Corporate Services - Digital, Data & Technology",Restore Plc,441352,8573.83,Mf Devolved Admin-storage And Distribution,RH1 5DY,VENDOR
"Department for Business, Energy and Industrial Strategy","Department for Business, Energy and Industrial Strategy",28/04/2022,Hire Of Agency Staff,"Corporate Services - Digital, Data & Technology",Alexander Mann Solutions Ltd,442256,860.16,Mf Devolved Admin-hire Of Agency Staff,EC2N 3AQ,VENDOR
"Department for Business, Energy and Industrial Strategy","Department for Business, Energy and Industrial Strategy",28/04/2022,Hire Of Agency Staff,"Corporate Services - Digital, Data & Technology",Alexander Mann Solutions Ltd,442271,688.13,Mf Devolved Admin-hire Of Agency Staff,EC2N 3AQ,VENDOR
"Department for Business, Energy and Industrial Strategy","Department for Business, Energy and Industrial Strategy",01/04/2022,Professional Subscriptions,Corporate Services - Partnerships,Royal British Legion Industries Ltd,437826,294.00,Mf Devolved Admin-professional Subscriptions,ME20 7NL,VENDOR
"Department for Business, Energy and Industrial Strategy","Department for Business, Energy and Industrial Strategy",01/04/2022,Professional Subscriptions,Corporate Services - Partnerships,Royal British Legion Industries Ltd,438137,294.00,Mf Devolved Admin-professional Subscriptions,ME20 7NL,VENDOR
"Department for Business, Energy and Industrial Strategy","Department for Business, Energy and Industrial Strategy",01/04/2022,Professional Subscriptions,Corporate Services - Partnerships,Royal British Legion Industries Ltd,438138,144.00,Mf Devolved Admin-professional Subscriptions,ME20 7NL,VENDOR
"Department for Business, Energy and Industrial Strategy","Department for Business, Energy and Industrial Strategy",01/04/2022,Professional Subscriptions,Corporate Services - Partnerships,Royal British Legion Industries Ltd,438138,150.00,Mf Devolved Admin-professional Subscriptions,ME20 7NL,VENDOR
"Department for Business, Energy and Industrial Strategy","Department for Business, Energy and Industrial Strategy",06/04/2022,Occupational Health Service,Corporate Services - Partnerships,People Asset Management Ltd,438504,-6605.40,Mf Devolved Admin-occupational Health Service,WA1 1SL,VENDOR
"Department for Business, Energy and Industrial Strategy","Department for Business, Energy and Industrial Strategy",06/04/2022,Occupational Health Service,Corporate Services - Partnerships,People Asset Management Ltd,438506,-5393.40,Mf Devolved Admin-occupational Health Service,WA1 1SL,VENDOR
"Department for Business, Energy and Industrial Strategy","Department for Business, Energy and Industrial Strategy",06/04/2022,Occupational Health Service,Corporate Services - Partnerships,People Asset Management Ltd,438507,3932.16,Mf Devolved Admin-occupational Health Service,WA1 1SL,VENDOR
"Department for Business, Energy and Industrial Strategy","Department for Business, Energy and Industrial Strategy",06/04/2022,Occupational Health Service,Corporate Services - Partnerships,People Asset Management Ltd,438508,3932.16,Mf Devolved Admin-occupational Health Service,WA1 1SL,VENDOR
"Department for Business, Energy and Industrial Strategy","Department for Business, Energy and Industrial Strategy",06/04/2022,Health And Safety Consultancy,Corporate Services - Partnerships,People Asset Management Ltd,438514,-5272.20,Mf Devolved Admin-health And Safety Consultancy,WA1 1SL,VENDOR
"Department for Business, Energy and Industrial Strategy","Department for Business, Energy and Industrial Strategy",06/04/2022,Occupational Health Service,Corporate Services - Partnerships,People Asset Management Ltd,438517,-3393.00,Mf Devolved Admin-occupational Health Service,WA1 1SL,VENDOR
"Department for Business, Energy and Industrial Strategy","Department for Business, Energy and Industrial Strategy",06/04/2022,Occupational Health Service,Corporate Services - Partnerships,People Asset Management Ltd,438517,-0.60,Mf Devolved Admin-occupational Health Service,WA1 1SL,VENDOR
"Department for Business, Energy and Industrial Strategy","Department for Business, Energy and Industrial Strategy",06/04/2022,Health And Safety Consultancy,Corporate Services - Partnerships,People Asset Management Ltd,438525,-4120.80,Mf Devolved Admin-health And Safety Consultancy,WA1 1SL,VENDOR
"Department for Business, Energy and Industrial Strategy","Department for Business, Energy and Industrial Strategy",06/04/2022,Professional Subscriptions,Corporate Services - Partnerships,Royal British Legion Industries Ltd,439061,294.00,Mf Devolved Admin-professional Subscriptions,ME20 7NL,VENDOR
"Department for Business, Energy and Industrial Strategy","Department for Business, Energy and Industrial Strategy",08/04/2022,Professional Subscriptions,Corporate Services - Partnerships,Royal British Legion Industries Ltd,439511,294.00,Mf Devolved Admin-professional Subscriptions,ME20 7NL,VENDOR
"Department for Business, Energy and Industrial Strategy","Department for Business, Energy and Industrial Strategy",14/04/2022,Training And Development Expenditure,Corporate Services - Partnerships,Igpp Ltd,439801,283.20,Mf Devolved Admin-training And Development Expenditure,WN6 9DB,VENDOR
"Department for Business, Energy and Industrial Strategy","Department for Business, Energy and Industrial Strategy",19/04/2022,Health And Safety Consultancy,Corporate Services - Partnerships,Specsavers Optical Superstores Ltd,440698,898.62,Mf Devolved Admin-health And Safety Consultancy,NG2 1EP,VENDOR
"Department for Business, Energy and Industrial Strategy","Department for Business, Energy and Industrial Strategy",20/04/2022,Professional Subscriptions,Corporate Services - Partnerships,Royal British Legion Industries Ltd,440832,294.00,Mf Devolved Admin-professional Subscriptions,ME20 7NL,VENDOR
"Department for Business, Energy and Industrial Strategy","Department for Business, Energy and Industrial Strategy",20/04/2022,Professional Subscriptions,Corporate Services - Partnerships,Royal British Legion Industries Ltd,440835,294.00,Mf Devolved Admin-professional Subscriptions,ME20 7NL,VENDOR
"Department for Business, Energy and Industrial Strategy","Department for Business, Energy and Industrial Strategy",19/04/2022,Professional Subscriptions,Corporate Services - Partnerships,Royal British Legion Industries Ltd,440840,294.00,Mf Devolved Admin-professional Subscriptions,ME20 7NL,VENDOR
"Department for Business, Energy and Industrial Strategy","Department for Business, Energy and Industrial Strategy",21/04/2022,Professional Subscriptions,Corporate Services - Partnerships,Royal British Legion Industries Ltd,441110,294.00,Mf Devolved Admin-professional Subscriptions,ME20 7NL,VENDOR
"Department for Business, Energy and Industrial Strategy","Department for Business, Energy and Industrial Strategy",22/04/2022,Professional Subscriptions,Corporate Services - Partnerships,Royal British Legion Industries Ltd,441115,294.00,Mf Devolved Admin-professional Subscriptions,ME20 7NL,VENDOR
"Department for Business, Energy and Industrial Strategy","Department for Business, Energy and Industrial Strategy",25/04/2022,Occupational Health Service,Corporate Services - Partnerships,People Asset Management Ltd,441511,3932.16,Mf Devolved Admin-occupational Health Service,WA1 1SL,VENDOR
"Department for Business, Energy and Industrial Strategy","Department for Business, Energy and Industrial Strategy",25/04/2022,Professional Subscriptions,Corporate Services - Partnerships,Mental Health First Aid England Community Interest Company,441512,156.00,Mf Devolved Admin-professional Subscriptions,E1 8BB,VENDOR
"Department for Business, Energy and Industrial Strategy","Department for Business, Energy and Industrial Strategy",25/04/2022,Professional Subscriptions,Corporate Services - Partnerships,Royal British Legion Industries Ltd,441531,294.00,Mf Devolved Admin-professional Subscriptions,ME20 7NL,VENDOR
"Department for Business, Energy and Industrial Strategy","Department for Business, Energy and Industrial Strategy",25/04/2022,Professional Subscriptions,Corporate Services - Partnerships,Royal British Legion Industries Ltd,441685,294.00,Mf Devolved Admin-professional Subscriptions,ME20 7NL,VENDOR
"Department for Business, Energy and Industrial Strategy","Department for Business, Energy and Industrial Strategy",06/04/2022,Legal Services And Advice Agency,Corporate Services - Legal Services,Gowling Wlg (Uk) Llp,437207,17687.70,Mf Devolved Admin-legal Services And Advice Agency,SE1 2AU,VENDOR
"Department for Business, Energy and Industrial Strategy","Department for Business, Energy and Industrial Strategy",06/04/2022,Legal Services And Advice Agency,Corporate Services - Legal Services,Gowling Wlg (Uk) Llp,437210,20375.40,Mf Devolved Admin-legal Services And Advice Agency,SE1 2AU,VENDOR
"Department for Business, Energy and Industrial Strategy","Department for Business, Energy and Industrial Strategy",05/04/2022,Legal Services And Advice Agency,Corporate Services - Legal Services,Gowling Wlg (Uk) Llp,438718,16286.10,Mf Devolved Admin-legal Services And Advice Agency,SE1 2AU,VENDOR
"Department for Business, Energy and Industrial Strategy","Department for Business, Energy and Industrial Strategy",20/04/2022,Stationery,Corporate Services - Legal Services,Banner Group Ltd,441010,0.68,Mf Devolved Admin-stationery,S9 1XT,VENDOR
"Department for Business, Energy and Industrial Strategy","Department for Business, Energy and Industrial Strategy",20/04/2022,Stationery,Corporate Services - Legal Services,Banner Group Ltd,441010,2.60,Mf Devolved Admin-stationery,S9 1XT,VENDOR
"Department for Business, Energy and Industrial Strategy","Department for Business, Energy and Industrial Strategy",20/04/2022,Stationery,Corporate Services - Legal Services,Banner Group Ltd,441010,2.83,Mf Devolved Admin-stationery,S9 1XT,VENDOR
"Department for Business, Energy and Industrial Strategy","Department for Business, Energy and Industrial Strategy",20/04/2022,Stationery,Corporate Services - Legal Services,Banner Group Ltd,441010,3.57,Mf Devolved Admin-stationery,S9 1XT,VENDOR
"Department for Business, Energy and Industrial Strategy","Department for Business, Energy and Industrial Strategy",20/04/2022,Stationery,Corporate Services - Legal Services,Banner Group Ltd,441010,10.18,Mf Devolved Admin-stationery,S9 1XT,VENDOR
"Department for Business, Energy and Industrial Strategy","Department for Business, Energy and Industrial Strategy",20/04/2022,Stationery,Corporate Services - Legal Services,Banner Group Ltd,441010,10.60,Mf Devolved Admin-stationery,S9 1XT,VENDOR
"Department for Business, Energy and Industrial Strategy","Department for Business, Energy and Industrial Strategy",20/04/2022,Stationery,Corporate Services - Legal Services,Banner Group Ltd,441010,10.77,Mf Devolved Admin-stationery,S9 1XT,VENDOR
"Department for Business, Energy and Industrial Strategy","Department for Business, Energy and Industrial Strategy",20/04/2022,Stationery,Corporate Services - Legal Services,Banner Group Ltd,441010,18.17,Mf Devolved Admin-stationery,S9 1XT,VENDOR
"Department for Business, Energy and Industrial Strategy","Department for Business, Energy and Industrial Strategy",20/04/2022,Stationery,Corporate Services - Legal Services,Banner Group Ltd,441010,23.19,Mf Devolved Admin-stationery,S9 1XT,VENDOR
"Department for Business, Energy and Industrial Strategy","Department for Business, Energy and Industrial Strategy",20/04/2022,Stationery,Corporate Services - Legal Services,Banner Group Ltd,441010,36.01,Mf Devolved Admin-stationery,S9 1XT,VENDOR
"Department for Business, Energy and Industrial Strategy","Department for Business, Energy and Industrial Strategy",20/04/2022,Stationery,Corporate Services - Legal Services,Banner Group Ltd,441010,36.01,Mf Devolved Admin-stationery,S9 1XT,VENDOR
"Department for Business, Energy and Industrial Strategy","Department for Business, Energy and Industrial Strategy",20/04/2022,Stationery,Corporate Services - Legal Services,Banner Group Ltd,441010,56.41,Mf Devolved Admin-stationery,S9 1XT,VENDOR
"Department for Business, Energy and Industrial Strategy","Department for Business, Energy and Industrial Strategy",20/04/2022,Stationery,Corporate Services - Legal Services,Banner Group Ltd,441010,71.29,Mf Devolved Admin-stationery,S9 1XT,VENDOR
"Department for Business, Energy and Industrial Strategy","Department for Business, Energy and Industrial Strategy",20/04/2022,Stationery,Corporate Services - Legal Services,Banner Group Ltd,441010,79.13,Mf Devolved Admin-stationery,S9 1XT,VENDOR
"Department for Business, Energy and Industrial Strategy","Department for Business, Energy and Industrial Strategy",20/04/2022,Stationery,Corporate Services - Legal Services,Banner Group Ltd,441010,131.89,Mf Devolved Admin-stationery,S9 1XT,VENDOR
"Department for Business, Energy and Industrial Strategy","Department for Business, Energy and Industrial Strategy",01/04/2022,Legal Services And Advice Agency,Corporate Services - Legal Services,Government Legal Department,437894,104443.82,Litigation And Government Legal Department-legal Services And Advice Agency,SW1H 9GL,VENDOR
"Department for Business, Energy and Industrial Strategy","Department for Business, Energy and Industrial Strategy",04/04/2022,Legal Services And Advice Agency,Corporate Services - Legal Services,Fountain Court Chambers,437901,10290.00,Litigation And Government Legal Department-legal Services And Advice Agency,EC4Y 9DH,VENDOR
"Department for Business, Energy and Industrial Strategy","Department for Business, Energy and Industrial Strategy",04/04/2022,Legal Services And Advice Agency,Corporate Services - Legal Services,Government Legal Department,438156,63309.45,Litigation And Government Legal Department-legal Services And Advice Agency,SW1H 9GL,VENDOR
"Department for Business, Energy and Industrial Strategy","Department for Business, Energy and Industrial Strategy",19/04/2022,Legal Services And Advice Agency,Corporate Services - Legal Services,Government Legal Department,439406,-2365.00,Litigation And Government Legal Department-legal Services And Advice Agency,SW1H 9GL,VENDOR
"Department for Business, Energy and Industrial Strategy","Department for Business, Energy and Industrial Strategy",21/04/2022,Legal Services And Advice Agency,Corporate Services - Legal Services,Government Legal Department,439407,-10966.80,Litigation And Government Legal Department-legal Services And Advice Agency,SW1H 9GL,VENDOR
"Department for Business, Energy and Industrial Strategy","Department for Business, Energy and Industrial Strategy",14/04/2022,Legal Services And Advice Agency,Corporate Services - Legal Services,The Scotland Office,440463,500.00,Litigation And Government Legal Department-legal Services And Advice Agency,EH8 8FT,VENDOR
"Department for Business, Energy and Industrial Strategy","Department for Business, Energy and Industrial Strategy",25/04/2022,Legal Services And Advice Agency,Corporate Services - Legal Services,Government Legal Department,441657,10464.20,Litigation And Government Legal Department-legal Services And Advice Agency,SW1H 9GL,VENDOR
"Department for Business, Energy and Industrial Strategy","Department for Business, Energy and Industrial Strategy",26/04/2022,Legal Services And Advice Agency,Corporate Services - Legal Services,Blackstone Chambers Ltd,441662,2250.00,Litigation And Government Legal Department-legal Services And Advice Agency,EC4Y 9BW,VENDOR
"Department for Business, Energy and Industrial Strategy","Department for Business, Energy and Industrial Strategy",25/04/2022,Legal Services And Advice Agency,Corporate Services - Legal Services,Government Legal Department,441694,139.40,Litigation And Government Legal Department-legal Services And Advice Agency,SW1H 9GL,VENDOR
"Department for Business, Energy and Industrial Strategy","Department for Business, Energy and Industrial Strategy",26/04/2022,Legal Services And Advice Agency,Corporate Services - Legal Services,Government Legal Department,441755,793.00,Litigation And Government Legal Department-legal Services And Advice Agency,SW1H 9GL,VENDOR
"Department for Business, Energy and Industrial Strategy","Department for Business, Energy and Industrial Strategy",27/04/2022,Legal Services And Advice Agency,Corporate Services - Legal Services,Government Legal Department,441757,88345.05,Litigation And Government Legal Department-legal Services And Advice Agency,SW1H 9GL,VENDOR
"Department for Business, Energy and Industrial Strategy","Department for Business, Energy and Industrial Strategy",25/04/2022,Marketing And Media,Corporate Services - Communications,Kantar Public Uk Ltd,441366,12050.00,Corporate Presentation-marketing And Media,SE1 2QY,VENDOR
"Department for Business, Energy and Industrial Strategy","Department for Business, Energy and Industrial Strategy",25/04/2022,Marketing And Media,Corporate Services - Communications,Kantar Public Uk Ltd,441368,7550.00,Corporate Presentation-marketing And Media,SE1 2QY,VENDOR
"Department for Business, Energy and Industrial Strategy","Department for Business, Energy and Industrial Strategy",26/04/2022,Marketing And Media,Corporate Services - Communications,Kantar Public Uk Ltd,441819,90450.00,Corporate Presentation-marketing And Media,SE1 2QY,VENDOR
"Department for Business, Energy and Industrial Strategy","Department for Business, Energy and Industrial Strategy",06/04/2022,Rail Travel Uk,Corporate Services - Communications,"Personal Expense, Name Withheld",438891,58.20,Mf Devolved Admin-rail Travel Uk,,EMPLOYEE
"Department for Business, Energy and Industrial Strategy","Department for Business, Energy and Industrial Strategy",06/04/2022,Publications,Corporate Services - Communications,Jones Yarrell Leadenhall (Menzies Distribution Ltd),439135,353.11,Mf Devolved Admin-publications,EH12 9DJ,VENDOR
"Department for Business, Energy and Industrial Strategy","Department for Business, Energy and Industrial Strategy",13/04/2022,Advertising,Corporate Services - Communications,Prgloo Ltd,439621,691.59,Mf Devolved Admin-advertising,WC2A 2JR,VENDOR
"Department for Business, Energy and Industrial Strategy","Department for Business, Energy and Industrial Strategy",14/04/2022,International Subscriptions,Corporate Services - Communications,Financial Times Ltd (The) T/A Ft Business,439957,21595.00,Mf Devolved Admin-international Subscriptions,SE1 9HL,VENDOR
"Department for Business, Energy and Industrial Strategy","Department for Business, Energy and Industrial Strategy",13/04/2022,Taxi Services Uk,Corporate Services - Communications,"Personal Expense, Name Withheld",440199,15.40,Mf Devolved Admin-taxi Services Uk,,EMPLOYEE
"Department for Business, Energy and Industrial Strategy","Department for Business, Energy and Industrial Strategy",20/04/2022,Publications,Corporate Services - Communications,Precise Media Monitoring Ltd,440482,1410.70,Mf Devolved Admin-publications,WC1X 8HB,VENDOR
"Department for Business, Energy and Industrial Strategy","Department for Business, Energy and Industrial Strategy",14/04/2022,Office-related Expenditure,Corporate Services - Communications,"Personal Expense, Name Withheld",440526,7.99,Mf Devolved Admin-office-related Expenditure,,EMPLOYEE
"Department for Business, Energy and Industrial Strategy","Department for Business, Energy and Industrial Strategy",14/04/2022,Subsistence Uk,Corporate Services - Communications,"Personal Expense, Name Withheld",440541,4.99,Mf Devolved Admin-subsistence Uk,,EMPLOYEE
"Department for Business, Energy and Industrial Strategy","Department for Business, Energy and Industrial Strategy",14/04/2022,Subsistence Uk,Corporate Services - Communications,"Personal Expense, Name Withheld",440541,14.95,Mf Devolved Admin-subsistence Uk,,EMPLOYEE
"Department for Business, Energy and Industrial Strategy","Department for Business, Energy and Industrial Strategy",20/04/2022,Taxi Services Uk,Corporate Services - Communications,"Personal Expense, Name Withheld",440945,14.53,Mf Devolved Admin-taxi Services Uk,,EMPLOYEE
"Department for Business, Energy and Industrial Strategy","Department for Business, Energy and Industrial Strategy",28/04/2022,Media And Design Services,Corporate Services - Communications,Nla Media Access Ltd,442390,122314.39,Mf Devolved Admin-media And Design Services,TN1 1HJ,VENDOR
"Department for Business, Energy and Industrial Strategy","Department for Business, Energy and Industrial Strategy",28/04/2022,Media And Design Services,Corporate Services - Communications,Warehouse Express Ltd T/A Wex Photo Video,439577,85.97,Mf Devolved Admin-media And Design Services,NR3 2BT,VENDOR
"Department for Business, Energy and Industrial Strategy","Department for Business, Energy and Industrial Strategy",20/04/2022,Subsistence Uk,Corporate Services - Communications,"Personal Expense, Name Withheld",440913,4.19,Mf Devolved Admin-subsistence Uk,,EMPLOYEE
"Department for Business, Energy and Industrial Strategy","Department for Business, Energy and Industrial Strategy",20/04/2022,Subsistence Uk,Corporate Services - Communications,"Personal Expense, Name Withheld",440913,4.90,Mf Devolved Admin-subsistence Uk,,EMPLOYEE
"Department for Business, Energy and Industrial Strategy","Department for Business, Energy and Industrial Strategy",20/04/2022,Rail Travel Uk,Corporate Services - Communications,"Personal Expense, Name Withheld",440913,6.40,Mf Devolved Admin-rail Travel Uk,,EMPLOYEE
"Department for Business, Energy and Industrial Strategy","Department for Business, Energy and Industrial Strategy",06/04/2022,Office-related Expenditure,"Corporate Services - Policy, Strategy And Private Office","Personal Expense, Name Withheld",438887,170.00,Mf Devolved Admin-office-related Expenditure,,EMPLOYEE
"Department for Business, Energy and Industrial Strategy","Department for Business, Energy and Industrial Strategy",06/04/2022,Office-related Expenditure,"Corporate Services - Policy, Strategy And Private Office","Personal Expense, Name Withheld",438928,175.14,Mf Devolved Admin-office-related Expenditure,,EMPLOYEE
"Department for Business, Energy and Industrial Strategy","Department for Business, Energy and Industrial Strategy",07/04/2022,Other Staff Costs,"Corporate Services - Policy, Strategy And Private Office","Personal Expense, Name Withheld",439159,4438.49,Mf Devolved Admin-other Staff Costs,,
"Department for Business, Energy and Industrial Strategy","Department for Business, Energy and Industrial Strategy",28/04/2022,Other Professional Services,"Corporate Services - Policy, Strategy And Private Office",Realise (Europe) Ltd,442260,12600.00,Mf Devolved Admin-other Professional Services,BN17 5JH,VENDOR
"Department for Business, Energy and Industrial Strategy","Department for Business, Energy and Industrial Strategy",01/04/2022,Office-related Expenditure,"Corporate Services - Policy, Strategy And Private Office","Personal Expense, Name Withheld",437958,10.53,Eu Exit Core Beis Staff: Corporate Services Adm-office-related Expenditure,,EMPLOYEE
"Department for Business, Energy and Industrial Strategy","Department for Business, Energy and Industrial Strategy",01/04/2022,Office-related Expenditure,"Corporate Services - Policy, Strategy And Private Office","Personal Expense, Name Withheld",437959,109.00,Eu Exit Core Beis Staff: Corporate Services Adm-office-related Expenditure,,EMPLOYEE
"Department for Business, Energy and Industrial Strategy","Department for Business, Energy and Industrial Strategy",01/04/2022,Office-related Expenditure,"Corporate Services - Policy, Strategy And Private Office","Personal Expense, Name Withheld",437960,11.99,Eu Exit Core Beis Staff: Corporate Services Adm-office-related Expenditure,,EMPLOYEE
"Department for Business, Energy and Industrial Strategy","Department for Business, Energy and Industrial Strategy",14/04/2022,Hire Of Agency Staff,Corporate Services - Human Resources,Alexander Mann Solutions Ltd,439007,1138.33,Mf Devolved Admin-hire Of Agency Staff,EC2N 3AQ,VENDOR
"Department for Business, Energy and Industrial Strategy","Department for Business, Energy and Industrial Strategy",14/04/2022,Hire Of Agency Staff,Corporate Services - Human Resources,Alexander Mann Solutions Ltd,440117,801.78,Mf Devolved Admin-hire Of Agency Staff,EC2N 3AQ,VENDOR
"Department for Business, Energy and Industrial Strategy","Department for Business, Energy and Industrial Strategy",26/04/2022,Hire Of Agency Staff,Corporate Services - Human Resources,Alexander Mann Solutions Ltd,441303,641.42,Mf Devolved Admin-hire Of Agency Staff,EC2N 3AQ,VENDOR
"Department for Business, Energy and Industrial Strategy","Department for Business, Energy and Industrial Strategy",27/04/2022,Hire Of Agency Staff,Corporate Services - Human Resources,Alexander Mann Solutions Ltd,441784,641.42,Mf Devolved Admin-hire Of Agency Staff,EC2N 3AQ,VENDOR
"Department for Business, Energy and Industrial Strategy","Department for Business, Energy and Industrial Strategy",08/04/2022,Ca - Intercompany Receivables (Financial Accounts System),Corporate Services - Human Resources,Flint Bishop Llp T/A Flint Bishop Solicitors,436490,115.00,Default-ca - Intercompany Receivables (Financial Accounts System),DE1 3HQ,VENDOR
"Department for Business, Energy and Industrial Strategy","Department for Business, Energy and Industrial Strategy",08/04/2022,Ca - Intercompany Receivables (Financial Accounts System),Corporate Services - Human Resources,Flint Bishop Llp T/A Flint Bishop Solicitors,436490,712.95,Default-ca - Intercompany Receivables (Financial Accounts System),DE1 3HQ,VENDOR
"Department for Business, Energy and Industrial Strategy","Department for Business, Energy and Industrial Strategy",08/04/2022,Ca - Intercompany Receivables (Financial Accounts System),Corporate Services - Human Resources,Flint Bishop Llp T/A Flint Bishop Solicitors,436490,895.97,Default-ca - Intercompany Receivables (Financial Accounts System),DE1 3HQ,VENDOR
"Department for Business, Energy and Industrial Strategy","Department for Business, Energy and Industrial Strategy",08/04/2022,Legal Services And Advice Agency,Corporate Services - Human Resources,Flint Bishop Llp T/A Flint Bishop Solicitors,436490,1359.97,Mf Devolved Admin-legal Services And Advice Agency,DE1 3HQ,VENDOR
"Department for Business, Energy and Industrial Strategy","Department for Business, Energy and Industrial Strategy",14/04/2022,Hr Advice And Services,Corporate Services - Human Resources,Home Office,440516,14771.64,Mf Devolved Admin-hr Advice And Services,NP20 9BB,WGA ONLY
"Department for Business, Energy and Industrial Strategy","Department for Business, Energy and Industrial Strategy",21/04/2022,Legal Services And Advice Agency,Corporate Services - Human Resources,Government Legal Department,441306,10025.20,Mf Devolved Admin-legal Services And Advice Agency,SW1H 9GL,VENDOR
"Department for Business, Energy and Industrial Strategy","Department for Business, Energy and Industrial Strategy",04/04/2022,Ca - Bike Loan,Corporate Services - Human Resources,Edenred (Uk Group) Ltd,437206,-610.00,Mf Non Devolved Admin-ca - Bike Loan,SW1V 2RS,VENDOR
"Department for Business, Energy and Industrial Strategy","Department for Business, Energy and Industrial Strategy",04/04/2022,Personnel-related Expenditure,Corporate Services - Human Resources,Edenred (Uk Group) Ltd,437900,76.51,Mf Non Devolved Admin-personnel-related Expenditure,SW1V 2RS,VENDOR
"Department for Business, Energy and Industrial Strategy","Department for Business, Energy and Industrial Strategy",04/04/2022,Ca - Bike Loan,Corporate Services - Human Resources,Edenred (Uk Group) Ltd,437900,9430.96,Mf Non Devolved Admin-ca - Bike Loan,SW1V 2RS,VENDOR
"Department for Business, Energy and Industrial Strategy","Department for Business, Energy and Industrial Strategy",04/04/2022,Ca - Bike Loan,Corporate Services - Human Resources,Edenred (Uk Group) Ltd,438121,1150.00,Mf Non Devolved Admin-ca - Bike Loan,SW1V 2RS,VENDOR
"Department for Business, Energy and Industrial Strategy","Department for Business, Energy and Industrial Strategy",04/04/2022,Personnel-related Expenditure,Corporate Services - Human Resources,Edenred (Uk Group) Ltd,438124,101.19,Mf Non Devolved Admin-personnel-related Expenditure,SW1V 2RS,VENDOR
"Department for Business, Energy and Industrial Strategy","Department for Business, Energy and Industrial Strategy",04/04/2022,Ca - Bike Loan,Corporate Services - Human Resources,Edenred (Uk Group) Ltd,438124,12365.16,Mf Non Devolved Admin-ca - Bike Loan,SW1V 2RS,VENDOR
"Department for Business, Energy and Industrial Strategy","Department for Business, Energy and Industrial Strategy",12/04/2022,Recruitment Advice And Services,Corporate Services - Human Resources,Cabinet Office,439741,136.00,Mf Non Devolved Admin-recruitment Advice And Services,NP10 8FZ,WGA ONLY
"Department for Business, Energy and Industrial Strategy","Department for Business, Energy and Industrial Strategy",12/04/2022,Recruitment Advice And Services,Corporate Services - Human Resources,Cabinet Office,439741,736.00,Mf Non Devolved Admin-recruitment Advice And Services,NP10 8FZ,WGA ONLY
"Department for Business, Energy and Industrial Strategy","Department for Business, Energy and Industrial Strategy",22/04/2022,Recruitment Advice And Services,Corporate Services - Human Resources,Cabinet Office,441494,18.00,Mf Non Devolved Admin-recruitment Advice And Services,FY1 9JN,WGA ONLY
"Department for Business, Energy and Industrial Strategy","Department for Business, Energy and Industrial Strategy",22/04/2022,Recruitment Advice And Services,Corporate Services - Human Resources,Cabinet Office,441494,46.00,Mf Non Devolved Admin-recruitment Advice And Services,FY1 9JN,WGA ONLY
"Department for Business, Energy and Industrial Strategy","Department for Business, Energy and Industrial Strategy",01/04/2022,Other Goods/Services,Corporate Services - Human Resources,Department For International Trade,432065,3750.00,Mf Devolved Admin-other Goods/Services,NP10 8QQ,WGA ONLY
"Department for Business, Energy and Industrial Strategy","Department for Business, Energy and Industrial Strategy",05/04/2022,Professional Subscriptions,Corporate Services - Human Resources,"Personal Expense, Name Withheld",438648,306.00,Mf Devolved Admin-professional Subscriptions,,EMPLOYEE
"Department for Business, Energy and Industrial Strategy","Department for Business, Energy and Industrial Strategy",08/04/2022,Training And Development Expenditure,Corporate Services - Human Resources,"Personal Expense, Name Withheld",439446,205.00,Mf Devolved Admin-training And Development Expenditure,,EMPLOYEE
"Department for Business, Energy and Industrial Strategy","Department for Business, Energy and Industrial Strategy",11/04/2022,Learning And Dev - Cs Skills,Corporate Services - Human Resources,Civil Service College Ltd,439612,495.00,Mf Devolved Admin-learning And Dev - Cs Skills,SW1H 9BU,VENDOR
"Department for Business, Energy and Industrial Strategy","Department for Business, Energy and Industrial Strategy",29/04/2022,Professional Subscriptions,Corporate Services - Human Resources,"Personal Expense, Name Withheld",442481,140.00,Mf Devolved Admin-professional Subscriptions,,EMPLOYEE
"Department for Business, Energy and Industrial Strategy","Department for Business, Energy and Industrial Strategy",08/04/2022,Training And Development Expenditure,Corporate Services - Human Resources,In-professional Development Ltd,434297,2500.00,Mf Non Devolved Admin-training And Development Expenditure,WN6 9DB,VENDOR
"Department for Business, Energy and Industrial Strategy","Department for Business, Energy and Industrial Strategy",06/04/2022,Training And Development Expenditure,Corporate Services - Human Resources,Genos Ei Europe Ltd,436584,1995.00,Mf Non Devolved Admin-training And Development Expenditure,W91 D6RV,VENDOR
"Department for Business, Energy and Industrial Strategy","Department for Business, Energy and Industrial Strategy",12/04/2022,Training And Development Expenditure,Corporate Services - Human Resources,Institute Of Welsh Affairs,437722,3805.00,Mf Non Devolved Admin-training And Development Expenditure,CF24 4HQ,VENDOR
"Department for Business, Energy and Industrial Strategy","Department for Business, Energy and Industrial Strategy",21/04/2022,Training And Development Expenditure,Corporate Services - Human Resources,Kpmg Llp,437747,2000.00,Mf Non Devolved Admin-training And Development Expenditure,E14 5GL,VENDOR
"Department for Business, Energy and Industrial Strategy","Department for Business, Energy and Industrial Strategy",01/04/2022,Learning And Dev - Cs Skills,Corporate Services - Human Resources,Professional Language Solutions Ltd,437762,707.10,Mf Non Devolved Admin-learning And Dev - Cs Skills,W6 0GY,VENDOR
"Department for Business, Energy and Industrial Strategy","Department for Business, Energy and Industrial Strategy",04/04/2022,Training And Development Expenditure,Corporate Services - Human Resources,Capita Business Services Ltd T/A Knowledgepool,437860,695.18,Mf Non Devolved Admin-training And Development Expenditure,DL1 9HN,VENDOR
"Department for Business, Energy and Industrial Strategy","Department for Business, Energy and Industrial Strategy",04/04/2022,Training And Development Expenditure,Corporate Services - Human Resources,Capita Business Services Ltd T/A Knowledgepool,437862,695.18,Mf Non Devolved Admin-training And Development Expenditure,DL1 9HN,VENDOR
"Department for Business, Energy and Industrial Strategy","Department for Business, Energy and Industrial Strategy",04/04/2022,Training And Development Expenditure,Corporate Services - Human Resources,Capita Business Services Ltd T/A Knowledgepool,437864,695.18,Mf Non Devolved Admin-training And Development Expenditure,DL1 9HN,VENDOR
"Department for Business, Energy and Industrial Strategy","Department for Business, Energy and Industrial Strategy",04/04/2022,Training And Development Expenditure,Corporate Services - Human Resources,Capita Business Services Ltd T/A Knowledgepool,437888,695.18,Mf Non Devolved Admin-training And Development Expenditure,DL1 9HN,VENDOR
"Department for Business, Energy and Industrial Strategy","Department for Business, Energy and Industrial Strategy",04/04/2022,Training And Development Expenditure,Corporate Services - Human Resources,Capita Business Services Ltd T/A Knowledgepool,437890,695.18,Mf Non Devolved Admin-training And Development Expenditure,DL1 9HN,VENDOR
"Department for Business, Energy and Industrial Strategy","Department for Business, Energy and Industrial Strategy",04/04/2022,Training And Development Expenditure,Corporate Services - Human Resources,Capita Business Services Ltd T/A Knowledgepool,437892,695.18,Mf Non Devolved Admin-training And Development Expenditure,DL1 9HN,VENDOR
"Department for Business, Energy and Industrial Strategy","Department for Business, Energy and Industrial Strategy",04/04/2022,Training And Development Expenditure,Corporate Services - Human Resources,Capita Business Services Ltd T/A Knowledgepool,438089,695.18,Mf Non Devolved Admin-training And Development Expenditure,DL1 9HN,VENDOR
"Department for Business, Energy and Industrial Strategy","Department for Business, Energy and Industrial Strategy",04/04/2022,Training And Development Expenditure,Corporate Services - Human Resources,Kpmg Llp,438113,2500.00,Mf Non Devolved Admin-training And Development Expenditure,E14 5GL,VENDOR
"Department for Business, Energy and Industrial Strategy","Department for Business, Energy and Industrial Strategy",21/04/2022,Training And Development Expenditure,Corporate Services - Human Resources,Kpmg Llp,438115,2500.00,Mf Non Devolved Admin-training And Development Expenditure,E14 5GL,VENDOR
"Department for Business, Energy and Industrial Strategy","Department for Business, Energy and Industrial Strategy",04/04/2022,Training And Development Expenditure,Corporate Services - Human Resources,Dods Group Ltd,438155,2656.00,Mf Non Devolved Admin-training And Development Expenditure,SE1 9SG,VENDOR
"Department for Business, Energy and Industrial Strategy","Department for Business, Energy and Industrial Strategy",04/04/2022,Training And Development Expenditure,Corporate Services - Human Resources,Cipd Enterprises Ltd,438157,7000.00,Mf Non Devolved Admin-training And Development Expenditure,SW19 1JQ,VENDOR
"Department for Business, Energy and Industrial Strategy","Department for Business, Energy and Industrial Strategy",04/04/2022,Training And Development Expenditure,Corporate Services - Human Resources,The Chartered Governance Institute Uk And Ireland,438163,1583.00,Mf Non Devolved Admin-training And Development Expenditure,EC1N 8TS,VENDOR
"Department for Business, Energy and Industrial Strategy","Department for Business, Energy and Industrial Strategy",21/04/2022,Training And Development Expenditure,Corporate Services - Human Resources,Kpmg Llp,438205,1735.00,Mf Non Devolved Admin-training And Development Expenditure,E14 5GL,VENDOR
"Department for Business, Energy and Industrial Strategy","Department for Business, Energy and Industrial Strategy",21/04/2022,Training And Development Expenditure,Corporate Services - Human Resources,Kpmg Llp,438209,199.00,Mf Non Devolved Admin-training And Development Expenditure,E14 5GL,VENDOR
"Department for Business, Energy and Industrial Strategy","Department for Business, Energy and Industrial Strategy",04/04/2022,Training And Development Expenditure,Corporate Services - Human Resources,University Of Cambridge,438256,4800.00,Mf Non Devolved Admin-training And Development Expenditure,CB2 1QA,VENDOR
"Department for Business, Energy and Industrial Strategy","Department for Business, Energy and Industrial Strategy",04/04/2022,Training And Development Expenditure,Corporate Services - Human Resources,Kpmg Llp,438270,229.00,Mf Non Devolved Admin-training And Development Expenditure,E14 5GL,VENDOR
"Department for Business, Energy and Industrial Strategy","Department for Business, Energy and Industrial Strategy",21/04/2022,Training And Development Expenditure,Corporate Services - Human Resources,Kpmg Llp,438282,199.00,Mf Non Devolved Admin-training And Development Expenditure,E14 5GL,VENDOR
"Department for Business, Energy and Industrial Strategy","Department for Business, Energy and Industrial Strategy",04/04/2022,Training And Development Expenditure,Corporate Services - Human Resources,Kpmg Llp,438285,859.00,Mf Non Devolved Admin-training And Development Expenditure,E14 5GL,VENDOR
"Department for Business, Energy and Industrial Strategy","Department for Business, Energy and Industrial Strategy",04/04/2022,Training And Development Expenditure,Corporate Services - Human Resources,Kpmg Llp,438286,230.00,Mf Non Devolved Admin-training And Development Expenditure,E14 5GL,VENDOR
"Department for Business, Energy and Industrial Strategy","Department for Business, Energy and Industrial Strategy",04/04/2022,Training And Development Expenditure,Corporate Services - Human Resources,Kpmg Llp,438287,26051.20,Mf Non Devolved Admin-training And Development Expenditure,E14 5GL,VENDOR
"Department for Business, Energy and Industrial Strategy","Department for Business, Energy and Industrial Strategy",21/04/2022,Training And Development Expenditure,Corporate Services - Human Resources,Kpmg Llp,438290,352.00,Mf Non Devolved Admin-training And Development Expenditure,E14 5GL,VENDOR
"Department for Business, Energy and Industrial Strategy","Department for Business, Energy and Industrial Strategy",21/04/2022,Training And Development Expenditure,Corporate Services - Human Resources,Kpmg Llp,438293,325.00,Mf Non Devolved Admin-training And Development Expenditure,E14 5GL,VENDOR
"Department for Business, Energy and Industrial Strategy","Department for Business, Energy and Industrial Strategy",21/04/2022,Training And Development Expenditure,Corporate Services - Human Resources,Kpmg Llp,438294,1390.00,Mf Non Devolved Admin-training And Development Expenditure,E14 5GL,VENDOR
"Department for Business, Energy and Industrial Strategy","Department for Business, Energy and Industrial Strategy",05/04/2022,Misc. Non Procurement Spend,Corporate Services - Human Resources,The Whitehall And Industry Group,438455,18915.96,Mf Non Devolved Admin-misc. Non Procurement Spend,SW1H 9EX,VENDOR
"Department for Business, Energy and Industrial Strategy","Department for Business, Energy and Industrial Strategy",05/04/2022,Training And Development Expenditure,Corporate Services - Human Resources,Oxford Said Business School Ltd,438466,5000.00,Mf Non Devolved Admin-training And Development Expenditure,OX1 5NY,VENDOR
"Department for Business, Energy and Industrial Strategy","Department for Business, Energy and Industrial Strategy",06/04/2022,Training And Development Expenditure,Corporate Services - Human Resources,Mycsp Ltd,438539,50.00,Mf Non Devolved Admin-training And Development Expenditure,SK3 0XN,VENDOR
"Department for Business, Energy and Industrial Strategy","Department for Business, Energy and Industrial Strategy",28/04/2022,Training And Development Expenditure,Corporate Services - Human Resources,Nssc Operations Ltd (National Space Centre),439065,175.00,Mf Non Devolved Admin-training And Development Expenditure,LE4 5NS,GRANT
"Department for Business, Energy and Industrial Strategy","Department for Business, Energy and Industrial Strategy",28/04/2022,Training And Development Expenditure,Corporate Services - Human Resources,Nssc Operations Ltd (National Space Centre),439065,1372.50,Mf Non Devolved Admin-training And Development Expenditure,LE4 5NS,GRANT
"Department for Business, Energy and Industrial Strategy","Department for Business, Energy and Industrial Strategy",06/04/2022,Misc. Non Procurement Spend,Corporate Services - Human Resources,Ernst And Young Llp,439127,15900.00,Mf Non Devolved Admin-misc. Non Procurement Spend,SE1 7EU,VENDOR
"Department for Business, Energy and Industrial Strategy","Department for Business, Energy and Industrial Strategy",06/04/2022,Misc. Non Procurement Spend,Corporate Services - Human Resources,Ernst And Young Llp,439134,15900.00,Mf Non Devolved Admin-misc. Non Procurement Spend,SE1 7EU,VENDOR
"Department for Business, Energy and Industrial Strategy","Department for Business, Energy and Industrial Strategy",08/04/2022,Training And Development Expenditure,Corporate Services - Human Resources,Happy Computers Limited,439492,2340.00,Mf Non Devolved Admin-training And Development Expenditure,E1 8DE,VENDOR
"Department for Business, Energy and Industrial Strategy","Department for Business, Energy and Industrial Strategy",08/04/2022,Training And Development Expenditure,Corporate Services - Human Resources,Lsr Training & Development Ltd,439495,1380.00,Mf Non Devolved Admin-training And Development Expenditure,YO42 4RE,VENDOR
"Department for Business, Energy and Industrial Strategy","Department for Business, Energy and Industrial Strategy",08/04/2022,Training And Development Expenditure,Corporate Services - Human Resources,Mycsp Ltd,439559,50.00,Mf Non Devolved Admin-training And Development Expenditure,SK8 7BS,VENDOR
"Department for Business, Energy and Industrial Strategy","Department for Business, Energy and Industrial Strategy",21/04/2022,Training And Development Expenditure,Corporate Services - Human Resources,Kpmg Llp,439593,640.00,Mf Non Devolved Admin-training And Development Expenditure,WD17 1DE,VENDOR
"Department for Business, Energy and Industrial Strategy","Department for Business, Energy and Industrial Strategy",12/04/2022,Misc. Non Procurement Spend,Corporate Services - Human Resources,Ernst And Young Llp,439767,3925.00,Mf Non Devolved Admin-misc. Non Procurement Spend,SE1 2AF,VENDOR
"Department for Business, Energy and Industrial Strategy","Department for Business, Energy and Industrial Strategy",12/04/2022,Training And Development Expenditure,Corporate Services - Human Resources,Kpmg Llp,439796,859.00,Mf Non Devolved Admin-training And Development Expenditure,E14 5GL,VENDOR
"Department for Business, Energy and Industrial Strategy","Department for Business, Energy and Industrial Strategy",12/04/2022,Training And Development Expenditure,Corporate Services - Human Resources,Bpp Professional Education Ltd,439857,1450.00,Mf Non Devolved Admin-training And Development Expenditure,M1 3HY,VENDOR
"Department for Business, Energy and Industrial Strategy","Department for Business, Energy and Industrial Strategy",22/04/2022,Professional Training,Corporate Services - Human Resources,Kpmg Llp,440467,1263.00,Mf Non Devolved Admin-professional Training,WD17 1DE,VENDOR
"Department for Business, Energy and Industrial Strategy","Department for Business, Energy and Industrial Strategy",21/04/2022,Misc. Non Procurement Spend,Corporate Services - Human Resources,Ernst And Young Llp,440478,7830.00,Mf Non Devolved Admin-misc. Non Procurement Spend,SE1 2AF,VENDOR
"Department for Business, Energy and Industrial Strategy","Department for Business, Energy and Industrial Strategy",14/04/2022,Training And Development Expenditure,Corporate Services - Human Resources,Ernst And Young Llp,440480,4594.25,Mf Non Devolved Admin-training And Development Expenditure,SE1 2AF,VENDOR
"Department for Business, Energy and Industrial Strategy","Department for Business, Energy and Industrial Strategy",14/04/2022,Training And Development Expenditure,Corporate Services - Human Resources,Lsr Training & Development Ltd,440501,540.00,Mf Non Devolved Admin-training And Development Expenditure,YO42 4RE,VENDOR
"Department for Business, Energy and Industrial Strategy","Department for Business, Energy and Industrial Strategy",14/04/2022,Training And Development Expenditure,Corporate Services - Human Resources,Lsr Training & Development Ltd,440502,540.00,Mf Non Devolved Admin-training And Development Expenditure,YO42 4RE,VENDOR
"Department for Business, Energy and Industrial Strategy","Department for Business, Energy and Industrial Strategy",14/04/2022,Training And Development Expenditure,Corporate Services - Human Resources,University Of East Anglia,440653,850.00,Mf Non Devolved Admin-training And Development Expenditure,NR4 7TJ,VENDOR
"Department for Business, Energy and Industrial Strategy","Department for Business, Energy and Industrial Strategy",19/04/2022,Training And Development Expenditure,Corporate Services - Human Resources,Lsr Training & Development Ltd,440795,740.00,Mf Non Devolved Admin-training And Development Expenditure,YO42 4RE,VENDOR
"Department for Business, Energy and Industrial Strategy","Department for Business, Energy and Industrial Strategy",21/04/2022,Training And Development Expenditure,Corporate Services - Human Resources,Kpmg Llp,441062,859.00,Mf Non Devolved Admin-training And Development Expenditure,E14 5GL,VENDOR
"Department for Business, Energy and Industrial Strategy","Department for Business, Energy and Industrial Strategy",21/04/2022,Training And Development Expenditure,Corporate Services - Human Resources,"Personal Expense, Name Withheld",441141,181.00,Mf Non Devolved Admin-training And Development Expenditure,,EMPLOYEE
"Department for Business, Energy and Industrial Strategy","Department for Business, Energy and Industrial Strategy",21/04/2022,Training And Development Expenditure,Corporate Services - Human Resources,"Personal Expense, Name Withheld",441141,181.00,Mf Non Devolved Admin-training And Development Expenditure,,EMPLOYEE
"Department for Business, Energy and Industrial Strategy","Department for Business, Energy and Industrial Strategy",21/04/2022,Training And Development Expenditure,Corporate Services - Human Resources,"Personal Expense, Name Withheld",441141,233.00,Mf Non Devolved Admin-training And Development Expenditure,,EMPLOYEE
"Department for Business, Energy and Industrial Strategy","Department for Business, Energy and Industrial Strategy",22/04/2022,Training And Development Expenditure,Corporate Services - Human Resources,Lsr Training & Development Ltd,441479,350.00,Mf Non Devolved Admin-training And Development Expenditure,YO42 4RE,VENDOR
"Department for Business, Energy and Industrial Strategy","Department for Business, Energy and Industrial Strategy",26/04/2022,Training And Development Expenditure,Corporate Services - Human Resources,Kpmg Llp,441481,243.00,Mf Non Devolved Admin-training And Development Expenditure,WD17 1DE,VENDOR
"Department for Business, Energy and Industrial Strategy","Department for Business, Energy and Industrial Strategy",26/04/2022,Training And Development Expenditure,Corporate Services - Human Resources,Kpmg Llp,441484,243.00,Mf Non Devolved Admin-training And Development Expenditure,WD17 1DE,VENDOR
"Department for Business, Energy and Industrial Strategy","Department for Business, Energy and Industrial Strategy",26/04/2022,Training And Development Expenditure,Corporate Services - Human Resources,Kpmg Llp,441492,243.00,Mf Non Devolved Admin-training And Development Expenditure,WD17 1DE,VENDOR
"Department for Business, Energy and Industrial Strategy","Department for Business, Energy and Industrial Strategy",26/04/2022,Training And Development Expenditure,Corporate Services - Human Resources,Kpmg Llp,441498,243.00,Mf Non Devolved Admin-training And Development Expenditure,WD17 1DE,VENDOR
"Department for Business, Energy and Industrial Strategy","Department for Business, Energy and Industrial Strategy",22/04/2022,Training And Development Expenditure,Corporate Services - Human Resources,Kpmg Llp,441501,243.00,Mf Non Devolved Admin-training And Development Expenditure,E14 5GL,VENDOR
"Department for Business, Energy and Industrial Strategy","Department for Business, Energy and Industrial Strategy",22/04/2022,Training And Development Expenditure,Corporate Services - Human Resources,Kpmg Llp,441503,243.00,Mf Non Devolved Admin-training And Development Expenditure,E14 5GL,VENDOR
"Department for Business, Energy and Industrial Strategy","Department for Business, Energy and Industrial Strategy",22/04/2022,Misc. Non Procurement Spend,Corporate Services - Human Resources,Mind Gym Ltd,441505,2040.00,Mf Non Devolved Admin-misc. Non Procurement Spend,W8 7RG,VENDOR
"Department for Business, Energy and Industrial Strategy","Department for Business, Energy and Industrial Strategy",27/04/2022,Training And Development Expenditure,Corporate Services - Human Resources,Open University,441523,1440.00,Mf Non Devolved Admin-training And Development Expenditure,MK7 6BT,VENDOR
"Department for Business, Energy and Industrial Strategy","Department for Business, Energy and Industrial Strategy",25/04/2022,Training And Development Expenditure,Corporate Services - Human Resources,Darren Newman Employment Law Ltd,441638,1500.00,Mf Non Devolved Admin-training And Development Expenditure,CB1 9AS,VENDOR
"Department for Business, Energy and Industrial Strategy","Department for Business, Energy and Industrial Strategy",25/04/2022,Training And Development Expenditure,Corporate Services - Human Resources,Public Relations Communications Association Ltd,441664,292.00,Mf Non Devolved Admin-training And Development Expenditure,SE1 0BE,VENDOR
"Department for Business, Energy and Industrial Strategy","Department for Business, Energy and Industrial Strategy",26/04/2022,Training And Development Expenditure,Corporate Services - Human Resources,Kpmg Llp,441679,229.00,Mf Non Devolved Admin-training And Development Expenditure,E14 5GL,VENDOR
"Department for Business, Energy and Industrial Strategy","Department for Business, Energy and Industrial Strategy",26/04/2022,Training And Development Expenditure,Corporate Services - Human Resources,Kpmg Llp,441682,229.00,Mf Non Devolved Admin-training And Development Expenditure,E14 5GL,VENDOR
"Department for Business, Energy and Industrial Strategy","Department for Business, Energy and Industrial Strategy",26/04/2022,Training And Development Expenditure,Corporate Services - Human Resources,Kpmg Llp,441823,325.00,Mf Non Devolved Admin-training And Development Expenditure,E14 5GL,VENDOR
"Department for Business, Energy and Industrial Strategy","Department for Business, Energy and Industrial Strategy",26/04/2022,Leadership & People Management,Corporate Services - Human Resources,Cabinet Office,441871,1100.00,Mf Non Devolved Admin-leadership & People Management,SW1A 2HQ,WGA ONLY
"Department for Business, Energy and Industrial Strategy","Department for Business, Energy and Industrial Strategy",27/04/2022,Training And Development Expenditure,Corporate Services - Human Resources,Ilx Group Plc,441962,85.00,Mf Non Devolved Admin-training And Development Expenditure,RG12 1WA,VENDOR
"Department for Business, Energy and Industrial Strategy","Department for Business, Energy and Industrial Strategy",27/04/2022,Training And Development Expenditure,Corporate Services - Human Resources,Ilx Group Plc,441962,295.00,Mf Non Devolved Admin-training And Development Expenditure,RG12 1WA,VENDOR
"Department for Business, Energy and Industrial Strategy","Department for Business, Energy and Industrial Strategy",26/04/2022,Talent And Beis Exclusive Training,Corporate Services - Human Resources,Professional Language Solutions Ltd,441973,757.10,Mf Non Devolved Admin-talent And Beis Exclusive Training,W6 0GY,VENDOR
"Department for Business, Energy and Industrial Strategy","Department for Business, Energy and Industrial Strategy",27/04/2022,Talent And Beis Exclusive Training,Corporate Services - Human Resources,Dods Group Ltd,441999,1850.00,Mf Non Devolved Admin-talent And Beis Exclusive Training,SE1 9SG,VENDOR
"Department for Business, Energy and Industrial Strategy","Department for Business, Energy and Industrial Strategy",27/04/2022,Talent And Beis Exclusive Training,Corporate Services - Human Resources,Dods Group Ltd,442000,1850.00,Mf Non Devolved Admin-talent And Beis Exclusive Training,SE1 9SG,VENDOR
"Department for Business, Energy and Industrial Strategy","Department for Business, Energy and Industrial Strategy",27/04/2022,Talent And Beis Exclusive Training,Corporate Services - Human Resources,Dods Group Ltd,442008,1850.00,Mf Non Devolved Admin-talent And Beis Exclusive Training,SE1 9SG,VENDOR
"Department for Business, Energy and Industrial Strategy","Department for Business, Energy and Industrial Strategy",27/04/2022,Training And Development Expenditure,Corporate Services - Human Resources,University College London,442023,3000.00,Mf Non Devolved Admin-training And Development Expenditure,WC1E 6BT,VENDOR
"Department for Business, Energy and Industrial Strategy","Department for Business, Energy and Industrial Strategy",27/04/2022,Misc. Non Procurement Spend,Corporate Services - Human Resources,Mind Gym Ltd,442045,2040.00,Mf Non Devolved Admin-misc. Non Procurement Spend,W8 7RG,VENDOR
"Department for Business, Energy and Industrial Strategy","Department for Business, Energy and Industrial Strategy",27/04/2022,Misc. Non Procurement Spend,Corporate Services - Human Resources,Mind Gym Ltd,442045,6120.00,Mf Non Devolved Admin-misc. Non Procurement Spend,W8 7RG,VENDOR
"Department for Business, Energy and Industrial Strategy","Department for Business, Energy and Industrial Strategy",27/04/2022,Talent And Beis Exclusive Training,Corporate Services - Human Resources,Dods Group Ltd,442197,1850.00,Mf Non Devolved Admin-talent And Beis Exclusive Training,SE1 9SG,VENDOR
"Department for Business, Energy and Industrial Strategy","Department for Business, Energy and Industrial Strategy",27/04/2022,Training And Development Expenditure,Corporate Services - Human Resources,Serco Ltd,442212,835.00,Mf Non Devolved Admin-training And Development Expenditure,NN17 9GY,VENDOR
"Department for Business, Energy and Industrial Strategy","Department for Business, Energy and Industrial Strategy",28/04/2022,Training And Development Expenditure,Corporate Services - Human Resources,In-professional Development Ltd,442231,1317.50,Mf Non Devolved Admin-training And Development Expenditure,WN6 9DB,VENDOR
"Department for Business, Energy and Industrial Strategy","Department for Business, Energy and Industrial Strategy",28/04/2022,Training And Development Expenditure,Corporate Services - Human Resources,Uk Government Investments (Ukgi),442364,412.50,Mf Non Devolved Admin-training And Development Expenditure,NR7 0HS,VENDOR
"Department for Business, Energy and Industrial Strategy","Department for Business, Energy and Industrial Strategy",28/04/2022,Training And Development Expenditure,Corporate Services - Human Resources,"Goldsmiths, University Of London",442376,3750.00,Mf Non Devolved Admin-training And Development Expenditure,SE14 6NW,VENDOR
"Department for Business, Energy and Industrial Strategy","Department for Business, Energy and Industrial Strategy",29/04/2022,Training And Development Expenditure,Corporate Services - Human Resources,Kpmg Llp,442532,345.00,Mf Non Devolved Admin-training And Development Expenditure,WD17 1DE,VENDOR
"Department for Business, Energy and Industrial Strategy","Department for Business, Energy and Industrial Strategy",29/04/2022,Training And Development Expenditure,Corporate Services - Human Resources,Kpmg Llp,442533,345.00,Mf Non Devolved Admin-training And Development Expenditure,WD17 1DE,VENDOR
"Department for Business, Energy and Industrial Strategy","Department for Business, Energy and Industrial Strategy",29/04/2022,Training And Development Expenditure,Corporate Services - Human Resources,Kpmg Llp,442535,317.00,Mf Non Devolved Admin-training And Development Expenditure,WD17 1DE,VENDOR
"Department for Business, Energy and Industrial Strategy","Department for Business, Energy and Industrial Strategy",29/04/2022,Training And Development Expenditure,Corporate Services - Human Resources,Kpmg Llp,442537,229.00,Mf Non Devolved Admin-training And Development Expenditure,WD17 1DE,VENDOR
"Department for Business, Energy and Industrial Strategy","Department for Business, Energy and Industrial Strategy",29/04/2022,Training And Development Expenditure,Corporate Services - Human Resources,Kpmg Llp,442539,345.00,Mf Non Devolved Admin-training And Development Expenditure,WD17 1DE,VENDOR
"Department for Business, Energy and Industrial Strategy","Department for Business, Energy and Industrial Strategy",06/04/2022,Other Relocation Costs,Corporate Services - Human Resources,"Personal Expense, Name Withheld",438865,4090.10,Mf Devolved Admin-other Relocation Costs,,EMPLOYEE
"Department for Business, Energy and Industrial Strategy","Department for Business, Energy and Industrial Strategy",07/04/2022,Other Relocation Costs,Corporate Services - Human Resources,"Personal Expense, Name Withheld",439203,3333.60,Mf Devolved Admin-other Relocation Costs,,EMPLOYEE
"Department for Business, Energy and Industrial Strategy","Department for Business, Energy and Industrial Strategy",21/04/2022,Other Relocation Costs,Corporate Services - Human Resources,"Personal Expense, Name Withheld",441161,172.70,Mf Devolved Admin-other Relocation Costs,,EMPLOYEE
